{"text_format":"1","workbook":"xlsx","n_sheets":4,"sheets":["MENU","INVENTAIRE","PERTE","RATIOS"],"not_rendered":{"charts":0,"images":3,"macros":1,"external_links":0,"defined_names":13,"comments":0,"pivot_tables":0},"unopened":[],"bounds":{"document_bytes":16777216,"sheet_cells":100000,"rows_first":2000,"rows_last":500,"rows_between":2000,"halvings":0,"cell_chars":16384,"cell_head_chars":4096},"cells_cut":0,"cells_raw":0,"read":"whole","date_system":"1900"}

{"sheet":"MENU","index":0,"n_rows":3,"n_cols":9,"rows_kept":3,"cut":false,"hidden":false,"merged":[[1,1,3,5],[0,8,0,10],[2,8,3,10]]}
[null,null,null,null,null,null,null,null,"Etablissement"]
[]
[null,null,null,null,null,null,null,null,"Kyriad Beaucouzé"]

{"sheet":"INVENTAIRE","index":1,"n_rows":975,"n_cols":19,"rows_kept":975,"cut":false,"hidden":false,"merged":[[973,7,973,9],[973,10,973,11],[967,7,967,9],[966,7,966,9],[972,10,972,11],[971,10,971,11],[970,10,970,11],[969,10,969,11],[968,10,968,11],[967,10,967,11],[966,10,966,11],[972,7,972,9],[971,7,971,9],[970,7,970,9],[969,7,969,9],[968,7,968,9],[970,3,974,6],[966,3,966,4],[967,3,967,4],[968,3,968,4],[969,3,969,4],[976,4,976,5],[0,27,0,30],[0,2,0,11],[1,18,3,18],[5,2,5,11],[1,5,2,6],[3,2,4,2],[3,3,4,3],[3,4,4,4],[3,7,4,7],[3,8,4,8],[3,9,4,9],[3,10,4,10],[3,11,4,11],[3,5,4,6],[974,7,974,11]]}
[null,null,"Feuille d'inventaire",null,null,null,null,null,null,null,null,null,null,null,null,null,null,null,"Passez votre commande"]
[null,null,null,null,null,"2016-05-01",null,null,null,null,null,null,null,null,null,null,null,null,"Cliquez ici pour exporter"]
[]
[null,null,"Code Store","Type\nde produit","Fournisseur","Désignation",null,"Unité Cde (colis)","Unité","Prix unitaire","Stock final","valorisation stock final"]
[null,null,null,null,null,null,null,null,null,null,null,null,null,null,null,null,null,null,{"$f":"SUM(S7:S965)","v":0}]
[null,null,"Petit-Déjeuner"]
[null,null,null,"Surgelé","Coup de Pates","Brioche Tressée",null,1,"pièce",null,null,{"$f":"J7*K7","v":0}]
[null,null,81837,"Frais","Brake France Services","Yaourt nature lait entier bio 100g / 1 carton = 6,5 €",null,24,"pièce",0.24082999999999999,null,{"$f":"J8*K8","v":0}]
[null,null,80605,"Frais","Brake France Services","Yaourt aux fruits Danone 125g / 1 carton = 12,9 €",null,48,"pièce",0.26874999999999999,null,0]
[null,null,81888,"Frais","Brake France Services","Yaourt Panier de fruits panaché Yoplait / 1 carton = 9,10 €",null,48,"pièce",0.189583,null,0]
[null,null,17173,"Frais","Brake France Services","Compote pomme allégée 100g / 1 carton = 11,40 €",null,72,"pièce",0.15833,null,0]
[null,null,82424,"Frais","Brake France Services","Emmental tranches 7,5*7,5 cm / 1 barquette = 3,90 €",null,15,"pièce",0.26,null,0]
[null,null,10950,"Frais","Brake France Services","Jambon cuit supérieur tranché / 1 barquette = 6,10 €",null,20,"pièce",0.30499999999999999,null,0]
[null,null,41053,"Frais","Brake France Services","Coppa sel sec de savoie tranché / 1 barquette = 2,90 €",null,25,"pièce",0.11600000000000001,null,0]
[null,null,80440,"Frais","Brake France Services","Œuf brouillé cuit / boite de 500g",null,1,"boîte",2.7370000000000001,null,0]
[null,null,null,null,null,null,null,null,null,null,null,0]
[null,null,80979,"Frais","Brake France Services","Beurre demi sel 10g / 1 carton = 6,10",null,100,"pièce",6.0999999999999999E-2,null,0]
[null,null,17190,"Buffet","Brake France Services","Confiture orange 30g / 1 carton = 9 €",null,40,"pièce",0.22500000000000001,null,0]
[null,null,17189,"Buffet","Brake France Services","Confiture framboise sans prépin 30g / 1 carton = 8,90 €",null,40,"pièce",0.2225,null,0]
[null,null,17188,"Buffet","Brake France Services","Confiture figues 30g / 1 carton = 9 €",null,40,"pièce",0.22500000000000001,null,0]
[null,null,17187,"Buffet","Brake France Services","Confiture cerise noire 30g / 1 carton = 8,90 €",null,40,"pièce",0.2225,null,0]
[null,null,16759,"Buffet","Brake France Services","Nutella 15g / 1 carton = 14,90 €",null,120,"pièce",0.1241666,null,0]
[null,null,17224,"Buffet","Brake France Services","Miel en coupelle 20g / 1 carton = 17,80 €",null,120,"pièce",0.14832999999999999,null,0]
[null,null,80014,"Frais","Brake France Services","Beurre doux 10g / 1 carton = 5,40 €",null,100,"pièce",5.3999999999999999E-2,null,0]
[null,null,48796,"Buffet","Brake France Services","Pain de mie 1,1 Kg / 1 sachet de 28 tranches = 2,90 €",null,28,"pièce",9.6014000000000002E-2,null,0]
[null,null,17263,"Buffet","Brake France Services","Biscotte salée x2  15g / 1 carton = 11,90 €",null,208,"pièce",5.7211150000000002E-2,null,0]
[null,null,17153,"Buffet","Brake Epicerie","Céréales spécial K 500g / carton de 8 boites = 25,20 €",null,8,"pièce",3.15,null,0]
[null,null,17152,"Buffet","Brake France Services","Céréales chocos 600g",null,1,"boîte",3.44,null,0]
[null,null,14157,"Buffet","Brake France Services","Céréales country store 2 kg",null,1,"sachet",9.76,null,0]
[null,null,17171,"Buffet","Brake Epicerie","Thé vert à la menthe / 6 boites soit 150 sachets = 11,90 €",null,150,"pièce",7.9333000000000001E-2,null,0]
[null,null,17305,"Buffet","Brake Epicerie","Thé Earl Grey / 6 boites soit 150 sachets = 11,90 €",null,150,"pièce",7.9333000000000001E-2,null,0]
[null,null,17170,"Buffet","Brake Epicerie","Thé fruits rouges / 6 boites soit 150 sachets = 11,90 €",null,150,"pièce",7.9333000000000001E-2,null,0]
[null,null,17167,"Buffet","Brake Epicerie","Thé English Breakfast / 6 boites soit 150 sachets = 11,90 €",null,150,"pièce",7.9333000000000001E-2,null,0]
[null,null,17168,"Buffet","Brake Epicerie","Thé Yellow Label / 6 boites soit 150 sachets = 11,90 €",null,150,"pièce",7.9333000000000001E-2,null,0]
[null,null,17306,"Buffet","Brake Epicerie","Thé Citron / 6 boites soit 150 sachets = 11,90 €",null,150,"pièce",7.9333000000000001E-2,null,0]
[null,null,17218,"Buffet","Brake France Services","Thé vert Kericho / 24 boites soit 600 sachets = 30,90 € (A VERIFIER)",null,600,"pièce",5.1499999999999997E-2,null,0]
[null,null,17302,"Buffet","Brake Epicerie","Infusion Verveine / 1 boîte = 6,30 €",null,100,"pièce",6.293E-2,null,0]
[null,null,17207,"Buffet","Brake France Services","Sucre en poudre buchete / 1 carton = 4,20 €",null,500,"pièce",8.3999999999999995E-3,null,0]
[null,null,17236,"Buffet","Brake Epicerie","Edulcorant dose en poudre / 1 carton = 5,80 €",null,500,"boîte",1.1599999999999999E-2,null,0]
[null,null,15425,"Office","Brake France Services","Film étirable 300 mètres x 45 cm",null,1,"pièce",10.246,null,0]
[null,null,80001,"Frais","Brake France Services","Lait UHT demi écrémé / pack de 6 x 1L = 3,70 €",null,6,"pièce",0.66666999999999998,null,0]
[null,null,16595,"Buffet","Brake France Services","Jus d'orange 100% pur jus Tropicana / BiB 10 L",null,1,"Bib",13.522,null,0]
[null,null,16596,"Buffet","Brake France Services","Jus de pomme 100% pur jus Tropicana / BiB 10 L",null,1,"Bib",13.010999999999999,null,0]
[null,null,15610,"Office","Brake France Services","Sets de table Kyriad / 1 sachet = 17,10 €",null,1000,"pièce",1.7100000000000001E-2,null,0]
[null,null,18159,"Office","Brake Epicerie","Serviette PDJ Ouatte champagne / 1 carton = 25,40 €",null,2000,"pièce",1.2699999999999999E-2,null,0]
[null,null,null,"Fruits","Gaité","Oranges à presser / Tél : 02 41 31 18 31",null,1,"kilo",0.95,null,0]
[null,null,null,null,null,null,null,null,null,null,null,0]
[null,null,25411,"Surgelé","Coup de Pates","Maxi brioche tressée cuite à trancher / 1 sachet = 19,142 €",null,1,"pièce",19.141999999999999,null,0]
[null,null,25957,"Surgelé","Coup de Pates","Mini croissant prépoussé / 1 carton = 32,044 €",null,225,"pièce",0.14199999999999999,null,0]
[null,null,25960,"Surgelé","Coup de Pates","Mini pain au chocolat / 1 carton = 37,288 €",null,250,"pièce",0.19,null,0]
[null,null,25958,"Surgelé","Coup de Pates","Mini pain au raisin / 1 carton = 20,758 €",null,120,"pièce",0.17299999999999999,null,0]
[null,null,22221,"Surgelé","Coup de Pates","Pain céréales / 1 carton = 46,872 €",null,28,"pièce",1.6739999999999999,null,0]
[null,null,25047,"Surgelé","Coup de Pates","Pancakes 90\" / 1 carton = 21,489 €",null,80,"pièce",0.26900000000000002,null,0]
[null,null,18481,"Surgelé","Coup de Pates","Salade 5 fruits de saison / Prix au kilo",null,1,"kilo",4.2300000000000004,null,0]
[null,null,null,"Buffet","Délices Molière","Baguette tradition",null,1,"pièce",0.83,null,0]
[null,null,null,"Buffet","Délices Molière","Chouquettes",null,1,"pièce",0.5,null,0]
[null,null,null,"Buffet","Délices Molière","Mini viennoiseries",null,1,"pièce",0.5,null,0]
[null,null,null,"Buffet","Délices Molière","Pain aux céréales",null,1,"pièce",1.48,null,0]
[null,null,null,"Buffet","Délices Molière","Pain chocolat",null,1,"pièce",0.5,null,0]
[null,null,"COLOMBIEKG","Machine Café","Brulerie Maine","Café colombie en grain (10 Kg acheté / 1 Kg offert)",null,1,"kilo",15.5,null,0]
[null,null,"COL500G","Machine Café","Brulerie Maine","Café moulu (10 Kg acheté / 1 Kg offert) / paquet de 250g",null,1,"pièce",8.5,null,0]
[null,null,"CHOCOLACTE","Machine Café","Brulerie Maine","Chocolat lacté (10 Kg acheté / 1 Kg offert)",null,1,"kilo",15.5,null,0]
[null,null,"053697 9","Frais","Métro","Comté Pointe AOP 30 * 25g / 1 boîte = 9,990 €",null,30,"pièce",{"$f":"1.1*0.3333","v":0.36663000000000001},null,{"$f":"J63*K63","v":0}]
[null,null,"149440 0","Frais","Métro","Poitrine fumée 800g / 1 lot = 5,89 €",null,1,"pièce",{"$f":"1.1*5.89","v":6.4790000000000001},null,0]
[null,null,"012653 2","Machine Café","Métro","Régilait 750g ",null,1,"pièce",{"$f":"1.1*4.69","v":5.1590000000000007},null,0]
[null,null,"089393 3","Office","Métro","Sac de congélation / 1 lot = 3,57 €",null,75,"pièce",{"$f":"1.1*0.0476","v":5.2360000000000011E-2},null,0]
[null,null,"022475 8","Office","Métro","Sac poubelle 130 L Marque Métro / 1 lot = 9,80 €",null,50,"pièce",{"$f":"1.1*0.196","v":0.21560000000000001},null,0]
[null,null,"082162 9","Office","Métro","Sac poubelle 20 L Marque Aro (5 rouleaux de 20) / 1 lot = 2,10 €",null,100,"pièce",{"$f":"1.1*0.021","v":2.3100000000000002E-2},null,0]
[null,null,"011993 3","Buffet","Métro","Sirop d'érable Mapple Joe",null,1,"pièce",{"$f":"1.1*3.47","v":3.8170000000000006},null,0]
[null,null,null,"Machine Café",null,"Régilait 500g",null,1,"pièce",null,null,0]
[null,null,null,null,null,null,null,null,null,null,null,0]
[null,null,null,null,null,null,null,null,null,null,null,0]
[null,null,null,null,null,null,null,null,null,null,null,0]
[null,null,null,null,null,null,null,null,null,null,null,0]
[null,null,null,null,null,null,null,null,null,null,null,0]
[null,null,null,null,null,null,null,null,null,null,null,0]
[null,null,null,null,null,null,null,null,null,null,null,0]
[null,null,null,null,null,null,null,null,null,null,null,0]
[null,null,null,null,null,null,null,null,null,null,null,0]
[null,null,null,null,null,null,null,null,null,null,null,0]
[null,null,null,null,null,null,null,null,null,null,null,0]
[null,null,null,null,null,null,null,null,null,null,null,0]
[null,null,null,null,null,null,null,null,null,null,null,0]
[null,null,null,null,null,null,null,null,null,null,null,0]
[null,null,null,null,null,null,null,null,null,null,null,0]
[null,null,null,null,null,null,null,null,null,null,null,0]
[null,null,null,null,null,null,null,null,null,null,null,0]
[null,null,null,null,null,null,null,null,null,null,null,0]
[null,null,null,null,null,null,null,null,null,null,null,0]
[null,null,"Séminaire"]
[null,null,15563,"Papeterie","Brake Epicerie","Bloc K Business / 1 sachet de 6 feuillets = 2,00 €",null,50,"pièce",0.04,null,0]
[null,null,15595,"Papeterie","Brake Epicerie","Chemise K Business / 1 sachet = 23,20 €",null,100,"pièce",0.23230000000000001,null,0]
[null,null,15578,"Papeterie","Brake Epicerie","Chevalet K Business / 1 sachet = 6,60 €",null,100,"pièce",6.6100000000000006E-2,null,0]
[null,null,"057324 6","Eaux","Métro","Eau Evian 50cL * 20 VC / 1 lot = 8,06 €",null,20,"pièce",{"$f":"1.1*0.403","v":0.44330000000000008},null,0]
[null,null,null,"Papeterie","Exarepro","Recto/verso K Business / 1 lot = 374,00 €",null,2000,"pièce",0.187,null,0]
[null,null,15682,"Papeterie","Réception","Sous-main K Business / 1 lot = 226,223 €",null,50,"pièce",4.5244600000000004,null,0]
[null,null,15684,"Papeterie","Brake Epicerie","Stylo bille K Business / 1 carton = 269 €",null,1000,"pièce",0.26901999999999998,null,0]
[null,null,null,"Eaux","Métro",null,null,null,null,null,null,0]
[null,null,null,null,null,null,null,null,null,null,null,0]
[null,null,null,null,null,null,null,null,null,null,null,0]
[null,null,null,null,null,null,null,null,null,null,null,0]
[null,null,null,null,null,null,null,null,null,null,null,0]
[null,null,null,null,null,null,null,null,null,null,null,0]
[null,null,null,null,null,null,null,null,null,null,null,0]
[null,null,null,null,null,null,null,null,null,null,null,0]
[null,null,null,null,null,null,null,null,null,null,null,0]
[null,null,null,null,null,null,null,null,null,null,null,0]
[null,null,null,null,null,null,null,null,null,null,null,0]
[null,null,null,null,null,null,null,null,null,null,null,0]
[null,null,null,null,null,null,null,null,null,null,null,0]
[null,null,null,null,null,null,null,null,null,null,null,0]
[null,null,null,null,null,null,null,null,null,null,null,0]
[null,null,null,null,null,null,null,null,null,null,null,0]
[null,null,null,null,null,null,null,null,null,null,null,0]
[null,null,null,null,null,null,null,null,null,null,null,0]
[null,null,null,null,null,null,null,null,null,null,null,0]
[null,null,null,null,null,null,null,null,null,null,null,0]
[null,null,null,null,null,null,null,null,null,null,null,0]
[null,null,null,null,null,null,null,null,null,null,null,0]
[null,null,null,null,null,null,null,null,null,null,null,0]
[null,null,null,null,null,null,null,null,null,null,null,0]
[null,null,null,null,null,null,null,null,null,null,null,0]
[null,null,null,null,null,null,null,null,null,null,null,0]
[null,null,null,null,null,null,null,null,null,null,null,0]
[null,null,null,null,null,null,null,null,null,null,null,{"$f":"J125*K125","v":0}]
[null,null,null,null,null,null,null,null,null,null,null,0]
[null,null,null,null,null,null,null,null,null,null,null,0]
[null,null,null,null,null,null,null,null,null,null,null,0]
[null,null,null,null,null,null,null,null,null,null,null,0]
[null,null,null,null,null,null,null,null,null,null,null,0]
[null,null,null,null,null,null,null,null,null,null,null,0]
[null,null,null,null,null,null,null,null,null,null,null,0]
[null,null,null,null,null,null,null,null,null,null,null,0]
[null,null,null,null,null,null,null,null,null,null,null,0]
[null,null,null,null,null,null,null,null,null,null,null,0]
[null,null,null,null,null,null,null,null,null,null,null,0]
[null,null,null,null,null,null,null,null,null,null,null,0]
[null,null,null,null,null,null,null,null,null,null,null,0]
[null,null,null,null,null,null,null,null,null,null,null,0]
[null,null,null,null,null,null,null,null,null,null,null,0]
[null,null,null,null,null,null,null,null,null,null,null,0]
[null,null,null,null,null,null,null,null,null,null,null,0]
[null,null,null,null,null,null,null,null,null,null,null,0]
[null,null,null,null,null,null,null,null,null,null,null,0]
[null,null,null,null,null,null,null,null,null,null,null,0]
[null,null,null,null,null,null,null,null,null,null,null,0]
[null,null,null,null,null,null,null,null,null,null,null,0]
[null,null,null,null,null,null,null,null,null,null,null,0]
[null,null,null,null,null,null,null,null,null,null,null,0]
[null,null,null,null,null,null,null,null,null,null,null,0]
[null,null,null,null,null,null,null,null,null,null,null,0]
[null,null,null,null,null,null,null,null,null,null,null,0]
[null,null,null,null,null,null,null,null,null,null,null,0]
[null,null,null,null,null,null,null,null,null,null,null,0]
[null,null,null,null,null,null,null,null,null,null,null,0]
[null,null,null,null,null,null,null,null,null,null,null,0]
[null,null,null,null,null,null,null,null,null,null,null,0]
[null,null,null,null,null,null,null,null,null,null,null,0]
[null,null,null,null,null,null,null,null,null,null,null,0]
[null,null,null,null,null,null,null,null,null,null,null,0]
[null,null,null,null,null,null,null,null,null,null,null,0]
[null,null,null,null,null,null,null,null,null,null,null,0]
[null,null,null,null,null,null,null,null,null,null,null,0]
[null,null,null,null,null,null,null,null,null,null,null,0]
[null,null,null,null,null,null,null,null,null,null,null,0]
[null,null,null,null,null,null,null,null,null,null,null,0]
[null,null,null,null,null,null,null,null,null,null,null,0]
[null,null,null,null,null,null,null,null,null,null,null,0]
[null,null,null,null,null,null,null,null,null,null,null,0]
[null,null,null,null,null,null,null,null,null,null,null,0]
[null,null,null,null,null,null,null,null,null,null,null,0]
[null,null,null,null,null,null,null,null,null,null,null,0]
[null,null,null,null,null,null,null,null,null,null,null,0]
[null,null,null,null,null,null,null,null,null,null,null,0]
[null,null,null,null,null,null,null,null,null,null,null,0]
[null,null,null,null,null,null,null,null,null,null,null,0]
[null,null,null,null,null,null,null,null,null,null,null,0]
[null,null,null,null,null,null,null,null,null,null,null,0]
[null,null,null,null,null,null,null,null,null,null,null,0]
[null,null,null,null,null,null,null,null,null,null,null,0]
[null,null,null,null,null,null,null,null,null,null,null,0]
[null,null,null,null,null,null,null,null,null,null,null,0]
[null,null,null,null,null,null,null,null,null,null,null,0]
[null,null,null,null,null,null,null,null,null,null,null,0]
[null,null,null,null,null,null,null,null,null,null,null,0]
[null,null,null,null,null,null,null,null,null,null,null,0]
[null,null,null,null,null,null,null,null,null,null,null,0]
[null,null,null,null,null,null,null,null,null,null,null,0]
[null,null,"Bar Boissons"]
[null,null,null,"Bières","Belle de Maine","Bière Belle de Maine Ambrée 0,5L / 1 carton = 33,60 €",null,12,"pièce",2.8,null,0]
[null,null,null,"Bières","Belle de Maine","Bière Belle de Maine Blanche 0,5L / 1 carton = 33,60 €",null,12,"pièce",2.8,null,0]
[null,null,null,"Bières","Belle de Maine","Bière Belle de Maine Blonde 0,5L / 1 carton = 33,60 €",null,12,"pièce",2.8,null,{"$f":"J192*K192","v":0}]
[null,null,77913,"Bières",null,"Bière Edelweiss 0,33L * 24 = 25,80 €",null,24,"pièce",1.075,null,0]
[null,null,null,"Bières","Belle de Maine","Bière Belle de Maine Triple 0,5L / 1 carton = 33,60 €",null,12,"pièce",2.8,null,{"$f":"J194*K194","v":0}]
[null,null,17301,"Thé","Brake","Infusion Gilbert Tilleul / 1 boite = 6,927 €",null,100,"pièce",9.2999999999999999E-2,null,0]
[null,null,10315,"Bières",null,"Bière Pelforth VC 0,33L * 24 = 22,656 €",null,24,"pièce",0.94399999999999995,null,0]
[null,null,null,"Softs","Giffard","Sirop Giffard Grenadine 1L",null,1,"litre",null,null,0]
[null,null,null,"Softs","Giffard","Sirop Giffard Menthe 1L",null,1,"litre",3.6,null,0]
[null,null,null,"Softs","Giffard ","Sirop Giffard Pêche 1L",null,1,"litre",4.6399999999999997,null,0]
[null,null,null,"Bières","Belle de Maine","Bière Belle de Maine Blonde 33 cL / 1 carton =",null,null,"pièce",null,null,0]
[null,null,7442,"Softs","Nespresso","Nespresso Livanto / 1 carton de 5 paquets = 17,50 €",null,50,"pièce",0.35,null,0]
[null,null,50,"Softs","Nespresso","Nespresso Ristretto /  1 carton de 5 paquets = 17,50 €",null,50,"pièce",0.35,null,0]
[null,null,7439,"Softs","Nespresso","Nespresso Roma / 1 carton de 5 paquets = 17,50 €",null,50,"pièce",0.35,null,0]
[null,null,null,"Softs","Nespresso","Nespresso Vanilla / 1 carton de 5 paquets = ",null,50,"pièce",null,null,0]
[null,null,7810,"Softs","Nespresso","Nespresso Vivalto Lungo /  1 carton de 5 paquets = 18,50 €",null,50,"pièce",0.37,null,0]
[null,null,7435,"Softs","Nespresso","Nespresso Volluto /  1 carton de 5 paquets = 17,50 €",null,50,"pièce",0.35,null,0]
[null,null,"BM26","Bières","V&B","Genepi ",null,1,"pièce",2.8,null,0]
[null,null,"BI02","Bières","V&B","Innis Gun Original",null,1,"pièce",2.4,null,0]
[null,null,"BI01","Bières","V&B","Innis Gun Rum Finish",null,1,"pièce",2.4,null,0]
[null,null,"BK13","Bières","V&B","Killkeny",null,1,"pièce",1.8,null,0]
[null,null,"BP21","Bières","V&B","Pecheresse / 1 carton  = 28,00 €",null,1,"pièce",1.4,null,0]
[null,null,"056661 2","Apéritifs","Métro","Bailey's 0,7L",null,1,"pièce",{"$f":"1.2*11.49","v":13.788},null,0]
[null,null,"169813 3","Bières","Métro","Bière Affligem 4 packs de 6 * 25 cL / 1 lot = 15,60 €",null,24,"pièce",{"$f":"1.2*0.65","v":0.78},null,0]
[null,null,"172253 7","Bières","Métro","Bière Desperados 24 * 33 cL / 1 lot = 23,76 €",null,24,"pièce",{"$f":"0.99*1.2","v":1.1879999999999999},null,0]
[null,null,"049994 7","Bières","Métro","Bière fût Leffe 6L",null,1,"pièce",24.89,null,0]
[null,null,"008635 5","Bières","Métro","Bière Leffe blonde 12 * 33 cL / 1 lot = 9,48 €",null,1,"pièce",{"$f":"1.2*0.79","v":0.94799999999999995},null,0]
[null,null,"057309 7","Softs","Métro","Coca cola 33 cL * 24 VC / 1 lot = 15,60 € (PROMO A CHANGER)",null,24,"pièce",{"$f":"1.055*1.1","v":1.1605000000000001},null,0]
[null,null,"057283 4","Softs","Métro","Coca zéro 33 cL * 24 VC /* 1 lot = 15,60 (PROMO A CHANGER)",null,24,"pièce",{"$f":"1.055*1.1","v":1.1605000000000001},null,0]
[null,null,"039474 2","Softs","Métro","Coca cola 1,5L / 1 lot = 16,68 € (PROMO A CHANGER)",null,12,"pièce",{"$f":"1.055*1.1","v":1.1605000000000001},null,0]
[null,null,"014193 7","Apéritifs","Métro","Cognac Hennessy VS 0,7L",null,1,"pièce",{"$f":"1.2*23.99","v":28.787999999999997},null,0]
[null,null,null,"Apéritifs","Métro","Cointreau 1,5L",null,1,"pièce",null,null,0]
[null,null,"008340 2","Apéritifs","Métro","Crème cassis d'Anjou Giffard 1L",null,1,"pièce",{"$f":"7.99*1.2","v":9.5879999999999992},null,0]
[null,null,"008423 6","Apéritifs","Métro","Crème mûres Giffard 0,7L",null,1,"pièce",{"$f":"7.19*1.2","v":8.6280000000000001},null,0]
[null,null,"017229 6","Eaux","Métro","Eau cristalline 1,5L / 1 lot = 6,12 € HT",null,6,"pièce",{"$f":"1.055*1.02","v":1.0761000000000001},null,0]
[null,null,null,"Eaux","Métro","Eau Perrier 25 cL * 6",null,6,"pièce",null,null,0]
[null,null,"057438 4","Eaux","Métro","Eau Perrier 33cL * 24 / 1 lot = 16,56 € HT",null,24,"pièce",{"$f":"0.69*1.055","v":0.72794999999999987},null,0]
[null,null,"057441 8","Eaux","Métro","Eau San Pellegrino 1L VC * 12 / 1 lot = 7,08 € HT",null,1,"litre",{"$f":"0.59*1.055","v":0.62244999999999995},null,0]
[null,null,null,"Eaux","Métro","Eau San Pellegrino 1L * 20",null,20,"pièce",null,null,0]
[null,null,"057449 1","Eaux","Métro","Eau San Pellegrino 50cL VC * 20 / 1 lot = 9,80 € HT",null,20,"pièce",{"$f":"0.49*1.055","v":0.51694999999999991},null,0]
[null,null,"057441 8","Eaux","Métro","Eau Vittel 1L VC * 12 / 1 lot = 5,88 € HT (réf 057454 1)",null,12,"litre",{"$f":"0.49*1.055","v":0.51694999999999991},null,0]
[null,null,"057457 4","Eaux","Métro","Eau Vittel 25 cL * 24 VC / 1 lot = 10,10 € HT",null,24,"pièce",{"$f":"0.4208*1.055","v":0.44394400000000001},null,0]
[null,null,"057458 2","Eaux","Métro","Eau Vittel 50 cL * 20 VC / 1 lot = 9,00 € HT",null,20,"pièce",{"$f":"0.45*1.055","v":0.47475000000000001},null,0]
[null,null,"028134 5","Apéritifs","Métro","Get 27 1L / 12,12 € HT",null,1,"litre",{"$f":"12.12*1.2","v":14.543999999999999},null,0]
[null,null,"053086 5","Apéritifs","Métro","Gin London Dry Bombay Sapphire 0,7L = 16,49 € HT",null,1,"pièce",{"$f":"16.49*1.2","v":19.787999999999997},null,0]
[null,null,"037328 2","Softs","Métro","Granini jus d'abricot 25 cL * 12 / 1 lot = 7,08 € HT",null,12,"pièce",{"$f":"0.59*1.055","v":0.62244999999999995},null,0]
[null,null,"037345 6","Softs","Métro","Granini jus de pomme 25 cL * 12 / 1 lot = 7,08 € HT",null,12,"pièce",{"$f":"1.055*0.59","v":0.62244999999999995},null,0]
[null,null,"037343 1","Softs","Métro","Granini jus de tomate 25 cL * 12 / 1 lot = 7,08 € HT",null,12,"pièce",{"$f":"0.59*1.055","v":0.62244999999999995},null,0]
[null,null,"037341 5","Softs","Métro","Granini nectar ananas 25 cL * 12 / 1 lot = 7,80 € HT",null,12,"pièce",{"$f":"1.055*0.65","v":0.68574999999999997},null,0]
[null,null,"037322 5","Softs","Métro","Granini nectar orange pulpe 25 cL * 12 / 1 lot = 7,08 € HT",null,12,"pièce",{"$f":"1.055*0.59","v":0.62244999999999995},null,0]
[null,null,"008329 5","Apéritifs","Métro","Guignolet d'Angers 1L = 7,99 € HT",null,1,"litre",{"$f":"7.99*1.2","v":9.5879999999999992},null,0]
[null,null,"028045 3","Softs","Métro","Ice Tea pêche 25 cL * 24 / 1 lot = 12,96 € HT",null,24,"pièce",{"$f":"0.54*1.055","v":0.56969999999999998},null,0]
[null,null,null,"Softs","Métro","Limonade Abeille 1L * 6",null,6,"pièce",null,null,0]
[null,null,"088686 1","Softs","Métro","Limonade Lorina 33 cL * 12 VP / 1 lot = 10,68 € HT",null,12,"pièce",{"$f":"0.89*1.055","v":0.93894999999999995},null,0]
[null,null,"091795 5","Apéritifs","Métro","Martini blanc 1L / 6,58 € HT",null,1,"litre",{"$f":"6.58*1.2","v":7.8959999999999999},null,0]
[null,null,"020000 6","Apéritifs","Métro","Martini rouge 1,5L / 11,24 € HT",null,1,"pièce",{"$f":"11.24*1.2","v":13.488},null,0]
[null,null,"091791 4","Apéritifs","Métro","Martini rouge 1L / 6,57 € HT",null,1,"litre",{"$f":"6.57*1.2","v":7.8840000000000003},null,0]
[null,null,"008287 5","Apéritifs","Métro","Menthe Pastille 1L / 12,99 € HT",null,1,"litre",{"$f":"12.99*1.2","v":15.587999999999999},null,0]
[null,null,"057399 8","Softs","Métro","Orangina jaune 25 cL * 39 VC / 1 lot = 24,96 € HT ",null,39,"pièce",{"$f":"1.055*3.2049","v":3.3811694999999995},null,0]
[null,null,"094095 7","Apéritifs","Métro","Passoa 70 cL / 8,59 € HT",null,1,"pièce",{"$f":"8.59*1.2","v":10.308},null,0]
[null,null,"106685 1","Apéritifs","Métro","Pastis 51 1L",null,1,"litre",{"$f":"1.2*12.49","v":14.988},null,0]
[null,null,"015932 7","Apéritifs","Métro","Poire Williams 0,7L CL Bertrand / 20,19 € HT",null,1,"pièce",{"$f":"20.19*1.2","v":24.228000000000002},null,0]
[null,null,"000161 0","Apéritifs","Métro","Porto Sanderman 0,75L / 6,69 € HT",null,1,"pièce",{"$f":"6.69*1.2","v":8.0280000000000005},null,0]
[null,null,null,"Apéritifs","Métro","Rhum Cubanacan 0,7L",null,1,"pièce",null,null,{"$f":"J253*K253","v":0}]
[null,null,"077114 7","Apéritifs","Métro","Rhum Havana Club Anejo blanco 0,7L / 11,99 € HT",null,1,"pièce",{"$f":"11.99*1.2","v":14.388},null,0]
[null,null,"050226 0","Apéritifs","Métro","Ricard 1,5L / 20,84 € HT",null,1,"pièce",{"$f":"20.84*1.2","v":25.007999999999999},null,0]
[null,null,null,"Apéritifs","Métro","Martini blanc 1,5L / 1 bouteille = ",null,1,"pièce",null,null,0]
[null,null,"057362 6","Softs","Métro","Schweppes 25 cL * 24 VC / 15,38 € HT (PROMO A CHANGER)",null,24,"pièce",{"$f":"0.6408*1.055","v":0.67604399999999998},null,0]
[null,null,null,"Softs","Métro","Sirop de citron vert",null,null,null,null,null,0]
[null,null,null,"Softs","Métro","Sirop de fruits de la passion",null,null,null,null,null,0]
[null,null,null,"Softs","Métro","Sirop de grenadine",null,null,null,null,null,0]
[null,null,null,"Softs","Métro","Sirop de menthe Giffard",null,1,"pièce",null,null,0]
[null,null,null,"Softs","Métro","Sirop de pêche Giffard",null,1,"pièce",null,null,0]
[null,null,null,"Softs","Métro","Sirop de pomme",null,null,null,null,null,0]
[null,null,null,"Softs","Métro","Sirop Teisseire citron clair 1L",null,1,"litre",null,null,0]
[null,null,null,"Softs","Métro","Sirop Teisseire fraise 1L",null,1,"litre",null,null,0]
[null,null,null,"Softs","Métro","Sirop Teisseire grenadine 1L",null,1,"litre",null,null,0]
[null,null,null,"Softs","Métro","Sirop Teisseire menthe verte 1L",null,1,"litre",null,null,0]
[null,null,null,"Softs","Métro","Sirop Teisseire pêche 1L",null,1,"litre",null,null,0]
[null,null,null,"Vins","Métro","Vin Anjou Rouge TerreBrune 0,75L * 6",null,6,"pièce",null,null,0]
[null,null,null,"Vins","Métro","Vin Coteaux du Layon 0,75L * 6",null,6,"pièce",null,null,0]
[null,null,null,"Vins","Métro","Vin Crémant Domaine TerreBrune 0,75L * 6",null,6,"pièce",null,null,0]
[null,null,null,"Vins","Métro","Vin Rosé de Loire TerreBrune 0,75 L * 6",null,6,"pièce",null,null,0]
[null,null,"024929 2","Apéritifs","Métro","Vodka Absolut Blue 0,7L / 12,59 € HT",null,1,"pièce",{"$f":"12.59*1.2","v":15.107999999999999},null,0]
[null,null,null,"Apéritifs","Métro","Whisky Aberlour 0,7L",null,1,"pièce",null,null,0]
[null,null,"097037 6","Apéritifs","Métro","Whisky Aberlour 10 years old 0,7L / 17,99 € HT (PROMO)",null,1,"pièce",{"$f":"17.99*1.2","v":21.587999999999997},null,0]
[null,null,"000146 1","Apéritifs","Métro","Whisky Chivas 12 years old 0,7L / 20,49 € HT (PROMO)",null,1,"pièce",{"$f":"20.49*1.2","v":24.587999999999997},null,0]
[null,null,"000159 4","Apéritifs","Métro","Whisky Four Roses 0,7L / 12,99 € HT",null,1,"pièce",{"$f":"12.99*1.2","v":15.587999999999999},null,0]
[null,null,"176531 2","Apéritifs","Métro","Whisky Jack Daniel's 0,7 cL / 15,99 € HT (PROMO)",null,1,"pièce",{"$f":"15.99*1.2","v":19.187999999999999},null,0]
[null,null,null,"Eaux","Métro","Eau Badoit Verte 33 cL * 30",null,30,"pièce",null,null,0]
[null,null,null,"Eaux","Métro","Eau Badoit Verte 50 cL * 6",null,6,"pièce",null,null,0]
[null,null,null,"Softs",null,"Crème de pamplemousse Giffard",null,1,"pièce",null,null,0]
[null,null,null,"Softs",null,"Crème d'abricot Vedrenne",null,1,"pièce",null,null,0]
[null,null,null,"Thé","Métro","Thé Gilbert Assam",null,30,"pièce",0.06,null,0]
[null,null,"178600 3","Thé","Métro","Thé Gilbert Bleu Clair (Tilleul) / 1,49 € HT par boite de 25",null,25,"pièce",{"$f":"0.596*1.055","v":0.62877999999999989},null,0]
[null,null,"178596 3","Thé","Métro","Thé Gilbert Noir Ceylan / 1,20 € HT par boite de 25",null,25,"pièce",{"$f":"0.048*1.055","v":5.0639999999999998E-2},null,0]
[null,null,"178594 8","Thé","Métro","Thé Gilbert Citron Vert / 1,20 € HT par boite de 25",null,25,"pièce",{"$f":"0.048*1.055","v":5.0639999999999998E-2},null,0]
[null,null,"178603 7","Thé","Métro","Thé Gilbert Earl Grey / 1,35 € HT par boite de 25",null,25,"pièce",{"$f":"0.054*1.055","v":5.6969999999999993E-2},null,0]
[null,null,"178617 7","Thé","Métro","Thé Gilbert Noir Fruits Rouges / 1,40 € HT par boite de 25",null,25,"pièce",{"$f":"0.056*1.055","v":5.9080000000000001E-2},null,0]
[null,null,null,"Thé","Métro","Thé Gilbert Mangue Passion",null,30,"pièce",0.06,null,0]
[null,null,"178604 5","Thé","Métro","Thé Gilbert Vert Menthe / 1,15 € HT par boite de 25",null,25,"pièce",{"$f":"0.046*1.055","v":4.8529999999999997E-2},null,0]
[null,null,null,"Softs",null,"Crème de cassis Giffard",null,1,"pièce",null,null,0]
[null,null,null,"Vins",null,"Champagne Rubis Yves Couvreur",null,1,"pièce",null,null,0]
[null,null,null,"Softs",null,"Fanta 1,5L",null,1,"pièce",null,null,0]
[null,null,null,"Softs",null,"Ice Tea pêche 1,5L",null,1,"pièce",null,null,0]
[null,null,null,"Eaux",null,"Eau San Pellegrino 50 cL plastique * 25 / palette ",null,25,"pièce",null,null,0]
[null,null,null,null,null,null,null,null,null,null,null,0]
[null,null,null,null,null,null,null,null,null,null,null,0]
[null,null,null,null,null,null,null,null,null,null,null,0]
[null,null,null,null,null,null,null,null,null,null,null,0]
[null,null,null,null,null,null,null,null,null,null,null,0]
[null,null,null,null,null,null,null,null,null,null,null,0]
[null,null,null,null,null,null,null,null,null,null,null,0]
[null,null,null,null,null,null,null,null,null,null,null,0]
[null,null,null,null,null,null,null,null,null,null,null,0]
[null,null,null,null,null,null,null,null,null,null,null,0]
[null,null,null,null,null,null,null,null,null,null,null,0]
[null,null,null,null,null,null,null,null,null,null,null,0]
[null,null,null,null,null,null,null,null,null,null,null,0]
[null,null,null,null,null,null,null,null,null,null,null,0]
[null,null,null,null,null,null,null,null,null,null,null,0]
[null,null,null,null,null,null,null,null,null,null,null,0]
[null,null,null,null,null,null,null,null,null,null,null,0]
[null,null,null,null,null,null,null,null,null,null,null,0]
[null,null,null,null,null,null,null,null,null,null,null,0]
[null,null,null,null,null,null,null,null,null,null,null,0]
[null,null,null,null,null,null,null,null,null,null,null,{"$f":"J316*K316","v":0}]
[null,null,null,null,null,null,null,null,null,null,null,0]
[null,null,null,null,null,null,null,null,null,null,null,0]
[null,null,null,null,null,null,null,null,null,null,null,0]
[null,null,null,null,null,null,null,null,null,null,null,0]
[null,null,null,null,null,null,null,null,null,null,null,0]
[null,null,null,null,null,null,null,null,null,null,null,0]
[null,null,null,null,null,null,null,null,null,null,null,0]
[null,null,null,null,null,null,null,null,null,null,null,0]
[null,null,null,null,null,null,null,null,null,null,null,0]
[null,null,null,null,null,null,null,null,null,null,null,0]
[null,null,null,null,null,null,null,null,null,null,null,0]
[null,null,null,null,null,null,null,null,null,null,null,0]
[null,null,null,null,null,null,null,null,null,null,null,0]
[null,null,null,null,null,null,null,null,null,null,null,0]
[null,null,null,null,null,null,null,null,null,null,null,0]
[null,null,null,null,null,null,null,null,null,null,null,0]
[null,null,"Bar Nourriture"]
[null,null,null,"Surgelé","Coup de Pates","Assorti Mini-moelleux salés",null,1,null,null,null,0]
[null,null,null,"Surgelé","Coup de Pates","Assorti Petit-fours sucrés",null,1,"pièce",0.66100000000000003,null,0]
[null,null,null,"Surgelé","Coup de Pates","Assortiment Mini-macaron découverte",null,1,null,null,null,0]
[null,null,null,"Surgelé","Coup de Pates","Beignets parfum / 1 lot = 40,95 €",null,105,"pièce",0.39,null,0]
[null,null,27584,"Surgelé","Coup de Pates","Brut de chocolat / 1 lot = 19,125 €",null,15,"pièce",1.2749999999999999,null,0]
[null,null,22398,"Surgelé","Coup de Pates","Cakes Zako Caramel / 1 lot = 1,596 €",null,12,"pièce",0.13300000000000001,null,0]
[null,null,22405,"Surgelé","Coup de Pates","Cakes Zako Chocolat / 1 lot = 24,396 €",null,12,"pièce",2.0329999999999999,null,0]
[null,null,22401,"Surgelé","Coup de Pates","Cakes Zako Framboise / 1 lot = 23,484 €",null,12,"pièce",1.9570000000000001,null,0]
[null,null,22407,"Surgelé","Coup de Pates","Cakes Zako Pomme-Raisin / 1 lot = 22,164 €",null,12,"pièce",1.847,null,0]
[null,null,27234,"Surgelé","Coup de Pates","Calissons",null,1,"pièce",0.22600000000000001,null,0]
[null,null,null,"Surgelé","Coup de Pates","Canêlés bouchées GrandSiècle",null,1,null,null,null,0]
[null,null,null,"Surgelé","Coup de Pates","Mini-beignet",null,1,null,null,null,0]
[null,null,null,"Surgelé","Coup de Pates","Micro Doots fourrés assortis",null,122,"pièce",null,null,0]
[null,null,27437,"Surgelé","Coup de Pates","Mini éclairs / 1 lot = 16,94 €",null,44,"pièce",0.38500000000000001,null,0]
[null,null,null,"Surgelé","Coup de Pates","Mini macarons",null,1,"pièce",0.371,null,0]
[null,null,25415,"Surgelé","Coup de Pates","Mini muffins assortis / 1 lot = 16,608 €",null,96,"pièce",0.17299999999999999,null,0]
[null,null,null,"Surgelé","Coup de Pates","Mini sandwich",null,1,null,null,null,0]
[null,null,null,"Surgelé","Coup de Pates","Moelleux chocolat",null,1,null,null,null,0]
[null,null,22430,"Surgelé","Coup de Pates","Pastel de Nata (Cannelle) / 1 lot = 34,80 €",null,120,"pièce",0.28999999999999998,null,0]
[null,null,null,"Surgelé","Coup de Pates","Petits fours confiseurs",null,1,null,null,null,0]
[null,null,25198,"Surgelé","Coup de Pates","Plaque de brownies",null,1,"pièce",0.71599999999999997,null,0]
[null,null,17080,"Surgelé","Coup de Pates","Assortiements de produits Salés / sachet 500g = 3,266 €",null,1,"pièce",3.266,null,0]
[null,null,null,"Surgelé","Coup de Pates","Séductions d'ailleurs",null,1,null,null,null,0]
[null,null,24584,"Surgelé","Coup de Pates","Cœur coulant chocolat / 1 carton = 15,30 €",null,12,"pièce",1.2749999999999999,null,0]
[null,null,26369,"Surgelé","Coup de Pates","Croque chèvre tomate / 1 carton = 35,112 €",null,24,"pièce",1.4630000000000001,null,0]
[null,null,26046,"Surgelé","Coup de Pates","Croque monsieur prétoasté / 1 carton = 22,46 €",null,24,"pièce",0.94,null,0]
[null,null,26935,"Surgelé","Coup de Pates","Pizza royale / 1 carton = 43,494 €",null,22,"pièce",1.9770000000000001,null,0]
[null,null,26336,"Surgelé","Coup de Pates","Quiche poireaux parmesan / 1 carton = 14,256 €",null,12,"pièce",1.1879999999999999,null,0]
[null,null,28573,"Surgelé","Coup de Pates","Saucisse lentille / 1 carton = 20,56 €",null,8,"pièce",2.57,null,0]
[null,null,30037,"Surgelé","Coup de Pates","Soufflés grand marnier / 1 carton = 30,456 €",null,18,"pièce",1.6919999999999999,null,0]
[null,null,30059,"Surgelé","Coup de Pates","Sunday caramel / 1 carton = 27,624 €",null,24,"pièce",1.151,null,0]
[null,null,30009,"Surgelé","Coup de Pates","Sunday nature / 1 carton = 20,7112 €",null,24,"pièce",0.86299999999999999,null,0]
[null,null,73157,"Surgelé","Brake France Services","Pasta Box 4 Fromages / 1 carton = 12,408 €",null,6,"pièce",2.0680000000000001,null,0]
[null,null,73158,"Surgelé","Brake France Services","Pasta Box Bolognaise / 1 carton = 12,408 €",null,6,"pièce",2.0680000000000001,null,0]
[null,null,73156,"Surgelé","Brake France Services","Pasta Box Carbonara / 1 carton = 12,408 €",null,6,"pièce",2.0680000000000001,null,0]
[null,null,26380,"Surgelé","Coup de Pates","Baguette Légumes Poulet",null,18,"pièce",null,null,0]
[null,null,27244,"Surgelé","Coup de Pates","Tarte Tatin",null,6,"pièce",null,null,0]
[null,null,22389,"Surgelé","Coup de Pates","Croque saumon ",null,1,"pièce",null,null,0]
[null,null,null,null,null,null,null,null,null,null,null,0]
[null,null,"050736 8","Snack","Métro","Jambon Serrano Rochambeau 80g *5 tranches",null,1,"pièce",{"$f":"1.1*2.19","v":2.4090000000000003},null,0]
[null,null,"061194 7","Snack","Métro","Cocktail biscuit 1Kg Horeca",null,1,"kilo",{"$f":"1.1*5.49","v":6.0390000000000006},null,0]
[null,null,"012570 8","Snack","Métro","Camembert Bons Mayennais 250g",null,1,"pièce",{"$f":"1.1*1.55","v":1.7050000000000003},null,0]
[null,null,"015004 5","Snack","Métro","Crotin chèvre 60g * 2 / 1 lot = 2,16 €",null,1,"pièce",{"$f":"0.1*1.08","v":0.10800000000000001},null,0]
[null,null,"073221 4","Snack","Métro","Rosette 100g Cochonou 10 tr / 1 lot = 1,69 €",null,1,"pièce",{"$f":"1.1*1.69","v":1.859},null,0]
[null,null,"037669 9","Snack","Métro","Mesclun Filière 1 Kg",null,1,"pièce",{"$f":"1.1*5.49","v":6.0390000000000006},null,0]
[null,null,"020261 4","Snack","Métro","Rillettes du Mans 220g Rochambeau",null,1,"pièce",{"$f":"1.1*1.26","v":1.3860000000000001},null,{"$f":"J379*K379","v":0}]
[null,null,"142723 6","Snack","Métro","Fromage Sainte Maure de Touraine La Maison du Fromage",null,1,"pièce",{"$f":"1.1*4.15","v":4.5650000000000004},null,0]
[null,null,null,"Snack","Intermarché","Salade",null,1,"pièce",null,null,0]
[null,null,"028546 0","Snack","Métro","Jambon sec La Griffe Noire 100g 4 tr",null,1,"pièce",{"$f":"1.1*1.99","v":2.1890000000000001},null,0]
[null,null,null,"Snack","Métro","Tomate cerise 250g",null,1,"pièce",null,null,0]
[null,null,"165746 9","Snack","Métro","Tranchette roti de porc 1 Kg Fleury Michon",null,1,"Kilo",{"$f":"1.1*6.9","v":7.5900000000000007},null,0]
[null,null,null,"Snack","Métro","Roti de porc Rochambeau",null,4,"pièce",0.34749999999999998,null,0]
[null,null,null,"Snack","Métro","Camembert Normandie Réo",null,1,"pièce",2.99,null,0]
[null,null,null,"Snack","Métro","Chorizo Rochambeau",null,12,"pièce",0.1075,null,0]
[null,null,null,"Snack","Métro","Pavé Poivre Vert Rochambeau",null,5,"pièce",0.25800000000000001,null,0]
[null,null,null,"Snack","Métro","Cornichon Rochambeau",null,1,"pièce",1.65,null,0]
[null,null,null,"Snack","Métro","Vinaigrette Puget tomate",null,1,"pièce","pièce"]
[null,null,null,null,null,null,null,null,null,null,null,0]
[null,null,null,null,null,null,null,null,null,null,null,0]
[null,null,null,null,null,null,null,null,null,null,null,0]
[null,null,null,null,null,null,null,null,null,null,null,0]
[null,null,null,null,null,null,null,null,null,null,null,0]
[null,null,null,null,null,null,null,null,null,null,null,0]
[null,null,null,null,null,null,null,null,null,null,null,0]
[null,null,null,null,null,null,null,null,null,null,null,0]
[null,null,null,null,null,null,null,null,null,null,null,0]
[null,null,null,null,null,null,null,null,null,null,null,0]
[null,null,null,null,null,null,null,null,null,null,null,0]
[null,null,null,null,null,null,null,null,null,null,null,0]
[null,null,null,null,null,null,null,null,null,null,null,0]
[null,null,null,null,null,null,null,null,null,null,null,0]
[null,null,null,null,null,null,null,null,null,null,null,0]
[null,null,null,null,null,null,null,null,null,null,null,0]
[null,null,null,null,null,null,null,null,null,null,null,0]
[null,null,null,null,null,null,null,null,null,null,null,0]
[null,null,null,null,null,null,null,null,null,null,null,0]
[null,null,null,null,null,null,null,null,null,null,null,0]
[null,null,null,null,null,null,null,null,null,null,null,0]
[null,null,null,null,null,null,null,null,null,null,null,0]
[null,null,null,null,null,null,null,null,null,null,null,0]
[null,null,null,null,null,null,null,null,null,null,null,0]
[null,null,null,null,null,null,null,null,null,null,null,0]
[null,null,null,null,null,null,null,null,null,null,null,0]
[null,null,null,null,null,null,null,null,null,null,null,0]
[null,null,null,null,null,null,null,null,null,null,null,0]
[null,null,null,null,null,null,null,null,null,null,null,0]
[null,null,null,null,null,null,null,null,null,null,null,0]
[null,null,null,null,null,null,null,null,null,null,null,0]
[null,null,null,null,null,null,null,null,null,null,null,0]
[null,null,null,null,null,null,null,null,null,null,null,0]
[null,null,null,null,null,null,null,null,null,null,null,0]
[null,null,null,null,null,null,null,null,null,null,null,0]
[null,null,null,null,null,null,null,null,null,null,null,0]
[null,null,null,null,null,null,null,null,null,null,null,0]
[null,null,null,null,null,null,null,null,null,null,null,0]
[null,null,null,null,null,null,null,null,null,null,null,0]
[null,null,null,null,null,null,null,null,null,null,null,0]
[null,null,null,null,null,null,null,null,null,null,null,0]
[null,null,null,null,null,null,null,null,null,null,null,0]
[null,null,null,null,null,null,null,null,null,null,null,0]
[null,null,null,null,null,null,null,null,null,null,null,0]
[null,null,null,null,null,null,null,null,null,null,null,0]
[null,null,null,null,null,null,null,null,null,null,null,0]
[null,null,null,null,null,null,null,null,null,null,null,0]
[null,null,null,null,null,null,null,null,null,null,null,0]
[null,null,null,null,null,null,null,null,null,null,null,0]
[null,null,null,null,null,null,null,null,null,null,null,0]
[null,null,null,null,null,null,null,null,null,null,null,0]
[null,null,null,null,null,null,null,null,null,null,null,0]
[null,null,null,null,null,null,null,null,null,null,null,{"$f":"J443*K443","v":0}]
[null,null,null,null,null,null,null,null,null,null,null,0]
[null,null,null,null,null,null,null,null,null,null,null,0]
[null,null,null,null,null,null,null,null,null,null,null,0]
[null,null,null,null,null,null,null,null,null,null,null,0]
[null,null,null,null,null,null,null,null,null,null,null,0]
[null,null,null,null,null,null,null,null,null,null,null,0]
[null,null,null,null,null,null,null,null,null,null,null,0]
[null,null,null,null,null,null,null,null,null,null,null,0]
[null,null,null,null,null,null,null,null,null,null,null,0]
[null,null,null,null,null,null,null,null,null,null,null,0]
[null,null,null,null,null,null,null,null,null,null,null,0]
[null,null,null,null,null,null,null,null,null,null,null,0]
[null,null,null,null,null,null,null,null,null,null,null,0]
[null,null,null,null,null,null,null,null,null,null,null,0]
[null,null,null,null,null,null,null,null,null,null,null,0]
[null,null,null,null,null,null,null,null,null,null,null,0]
[null,null,null,null,null,null,null,null,null,null,null,0]
[null,null,null,null,null,null,null,null,null,null,null,0]
[null,null,null,null,null,null,null,null,null,null,null,0]
[null,null,null,null,null,null,null,null,null,null,null,0]
[null,null,null,null,null,null,null,null,null,null,null,0]
[null,null,null,null,null,null,null,null,null,null,null,0]
[null,null,null,null,null,null,null,null,null,null,null,0]
[null,null,null,null,null,null,null,null,null,null,null,0]
[null,null,null,null,null,null,null,null,null,null,null,0]
[null,null,null,null,null,null,null,null,null,null,null,0]
[null,null,null,null,null,null,null,null,null,null,null,0]
[null,null,null,null,null,null,null,null,null,null,null,0]
[null,null,null,null,null,null,null,null,null,null,null,0]
[null,null,null,null,null,null,null,null,null,null,null,0]
[null,null,null,null,null,null,null,null,null,null,null,0]
[null,null,null,null,null,null,null,null,null,null,null,0]
[null,null,null,null,null,null,null,null,null,null,null,0]
[null,null,null,null,null,null,null,null,null,null,null,0]
[null,null,null,null,null,null,null,null,null,null,null,0]
[null,null,null,null,null,null,null,null,null,null,null,0]
[null,null,null,null,null,null,null,null,null,null,null,0]
[null,null,null,null,null,null,null,null,null,null,null,0]
[null,null,"Produits d'accueil"]
[null,null,16829,"Softs","Brake Epicerie","Nescafé spécial filtre stick / 1 carton = 28,80 €",null,300,"pièce",9.6000000000000002E-2,null,0]
[null,null,16831,"Softs","Brake Epicerie","Nescafé spécial filtre Déca stick / 1 carton = 29,90",null,300,"pièce",9.9666000000000005E-2,null,0]
[null,null,81895,"Softs","Brake France Services","Lait entier coupelle 10g / 1 carton= 6,30 €",null,240,"pièce",2.6249999999999999E-2,null,0]
[null,null,15690,"Papeterie","Brake France Services","Porte mine Kyriad / 1 carton = 171,20 €",null,1000,"pièce",0.17119999999999999,null,0]
[null,null,15617,"Papeterie","Brake Epicerie","Cravate de porte Kyriad / 1 sachet = 1,90 €",null,50,"pièce",3.78E-2,null,0]
[null,null,15632,"Papeterie","Brake Epicerie","Cravate de porte écologie Kyriad / 1 sachet = 3,80 €",null,50,"pièce",7.6600000000000001E-2,null,0]
[null,null,15631,"Papeterie","Brake France Services","Porte carte magnétique Kyriad / 1 sachet = 3,70 €",null,125,"pièce",2.9360000000000001E-2,null,0]
[null,null,15619,"Papeterie","Brake France Services","Etiquette bouteille d'eau circulaire Kyriad / 1 sachet = 8,00 €",null,250,"pièce",3.1800000000000002E-2,null,0]
[null,null,15608,"Papeterie","Brake Epicerie","Chevalet SnackBag Kyriad / 1 sachet = 5,40 €",null,50,"pièce",0.10879999999999999,null,0]
[null,null,18155,null,"Brake Epicerie","Gobelet Kyriad bleu et café 24 cL emballé / 1 carton = 61,60 €",null,800,"pièce",7.7049999999999993E-2,null,0]
[null,null,18159,"Office","Brake Epicerie","Serviette PDJ Ouatte champagne pour le contrôle ",null,2000,"pièce",1.2699999999999999E-2,null,0]
[null,null,17168,"Buffet","Brake Epicerie","Thé Yellow Label / 6 boites soit 150 sachets = 11,90 €",null,150,"pièce",7.9333000000000001E-2,null,0]
[null,null,17302,"Buffet","Brake Epicerie","Infusion Verveine / 1 boîte = 6,30 €",null,100,"pièce",6.293E-2,null,0]
[null,null,15614,"Papeterie","Brake France Services","Bloc note Kyriad 6 feuillets / 1 sachet = 4,20 €",null,50,"pièce",8.4000000000000005E-2,null,0]
[null,null,15573,null,"Brake France Services","Savon 15g Kyriad / 1 carton = 14,70 € ",null,300,"pièce",4.9000000000000002E-2,null,{"$f":"J497*K497","v":0}]
[null,null,15666,"Office","Brake France Services","Sac poubelle 130 L / 1 carton = 18,70 €",null,200,"pièce",9.35E-2,null,0]
[null,null,15688,null,"Brake France Services","Gobelet usage unique emballé / 1 carton = 34,20 €",null,800,"pièce",4.2750000000000003E-2,null,0]
[null,null,15569,null,"Brake France Services","Protège oreiller plastique / 1 sachet = 22,80 €",null,100,"pièce",0.22770000000000001,null,0]
[null,null,"055199 4","Divers","Métro","Bonbons accueil fruits 1,4 Kg",null,1,"pièce",{"$f":"1.1*7.89","v":8.6790000000000003},null,0]
[null,null,18157,null,"Brake Epicerie","Couvercle Cup / 1 carton = 36,13 €",null,1000,"pièce",3.6130000000000002E-2,null,0]
[null,null,"057604 1","Eaux","Métro","Eau Cristalline 50cL * 24 / 1 lot = 4,08 €",null,24,"pièce",{"$f":"1.1*0.17","v":0.18700000000000003},null,0]
[null,null,14738,null,"Brake France Services","Madeleines pâtissières 30g / 1 carton = 13,631 €",null,100,"pièce",0.13630999999999999,null,0]
[null,null,null,null,"Réception","Récipient savon pour chambre",null,1,"pièce",null,null,0]
[null,null,null,null,"Brake Non Alimentaire","Lait hydratant",null,null,null,null,null,0]
[null,null,"3617.02",null,"Honorance","Mouchoirs / 1 paquet = 12,10 €",null,22,"pièce",0.55000000000000004,null,0]
[null,null,null,null,"Diversey","Papier hygiénique public",null,null,null,null,null,0]
[null,null,"G152498",null,"Honorance","Papier WC / 1 carton = 8,16 €",null,48,"pièce",0.17,null,0]
[null,null,15564,null,"Réception","Cup Plastique 24 cL emballés / 1 carton = 34,32 €",null,800,"pièce",4.2900000000000001E-2,null,0]
[null,null,"01.21816GAR",null,"Honorance","Sacs hygiéniques / 1 carton = 49,92 €",null,48,"pièce",1.04,null,0]
[null,null,null,null,"IPC","Aspirodeur",null,18,"pièce",11.76,null,0]
[null,null,null,null,"IPC","Captodeur",null,6,"pièce",19.53,null,0]
[null,null,21436925,"Cintres","Alinéa","Cintres Hangy Erable (pince jupe)",null,3,"pièce",0.96699999999999997,null,0]
[null,null,24566636,"Cintres","Alinéa","Cintres Paco Erable (cintre veste)",null,5,"pièce",0.5,null,0]
[null,null,null,"Divers","Réception","Petite cuillère blanche",null,3000,"pièce",null,null,0]
[null,null,null,"Divers","Miroplast","Régulateur débit d'eau",null,null,null,null,null,0]
[null,null,null,null,null,null,null,null,null,null,null,0]
[null,null,null,null,null,null,null,null,null,null,null,0]
[null,null,null,null,null,null,null,null,null,null,null,0]
[null,null,null,null,null,null,null,null,null,null,null,0]
[null,null,null,null,null,null,null,null,null,null,null,0]
[null,null,null,null,null,null,null,null,null,null,null,0]
[null,null,null,null,null,null,null,null,null,null,null,0]
[null,null,null,null,null,null,null,null,null,null,null,0]
[null,null,null,null,null,null,null,null,null,null,null,0]
[null,null,null,null,null,null,null,null,null,null,null,0]
[null,null,null,null,null,null,null,null,null,null,null,0]
[null,null,null,null,null,null,null,null,null,null,null,0]
[null,null,null,null,null,null,null,null,null,null,null,0]
[null,null,null,null,null,null,null,null,null,null,null,0]
[null,null,null,null,null,null,null,null,null,null,null,0]
[null,null,null,null,null,null,null,null,null,null,null,0]
[null,null,null,null,null,null,null,null,null,null,null,0]
[null,null,null,null,null,null,null,null,null,null,null,0]
[null,null,null,null,null,null,null,null,null,null,null,0]
[null,null,null,null,null,null,null,null,null,null,null,0]
[null,null,null,null,null,null,null,null,null,null,null,0]
[null,null,null,null,null,null,null,null,null,null,null,0]
[null,null,null,null,null,null,null,null,null,null,null,0]
[null,null,null,null,null,null,null,null,null,null,null,0]
[null,null,null,null,null,null,null,null,null,null,null,0]
[null,null,null,null,null,null,null,null,null,null,null,0]
[null,null,null,null,null,null,null,null,null,null,null,0]
[null,null,null,null,null,null,null,null,null,null,null,0]
[null,null,null,null,null,null,null,null,null,null,null,0]
[null,null,null,null,null,null,null,null,null,null,null,0]
[null,null,null,null,null,null,null,null,null,null,null,0]
[null,null,null,null,null,null,null,null,null,null,null,0]
[null,null,null,null,null,null,null,null,null,null,null,0]
[null,null,null,null,null,null,null,null,null,null,null,0]
[null,null,null,null,null,null,null,null,null,null,null,0]
[null,null,null,null,null,null,null,null,null,null,null,0]
[null,null,null,null,null,null,null,null,null,null,null,0]
[null,null,null,null,null,null,null,null,null,null,null,0]
[null,null,null,null,null,null,null,null,null,null,null,{"$f":"J556*K556","v":0}]
[null,null,null,null,null,null,null,null,null,null,null,0]
[null,null,null,null,null,null,null,null,null,null,null,0]
[null,null,null,null,null,null,null,null,null,null,null,0]
[null,null,null,null,null,null,null,null,null,null,null,0]
[null,null,null,null,null,null,null,null,null,null,null,0]
[null,null,null,null,null,null,null,null,null,null,null,0]
[null,null,null,null,null,null,null,null,null,null,null,0]
[null,null,null,null,null,null,null,null,null,null,null,0]
[null,null,null,null,null,null,null,null,null,null,null,0]
[null,null,null,null,null,null,null,null,null,null,null,0]
[null,null,null,null,null,null,null,null,null,null,null,0]
[null,null,null,null,null,null,null,null,null,null,null,0]
[null,null,null,null,null,null,null,null,null,null,null,0]
[null,null,null,null,null,null,null,null,null,null,null,0]
[null,null,null,null,null,null,null,null,null,null,null,0]
[null,null,null,null,null,null,null,null,null,null,null,0]
[null,null,null,null,null,null,null,null,null,null,null,0]
[null,null,null,null,null,null,null,null,null,null,null,0]
[null,null,null,null,null,null,null,null,null,null,null,0]
[null,null,null,null,null,null,null,null,null,null,null,0]
[null,null,null,null,null,null,null,null,null,null,null,0]
[null,null,null,null,null,null,null,null,null,null,null,0]
[null,null,null,null,null,null,null,null,null,null,null,0]
[null,null,null,null,null,null,null,null,null,null,null,0]
[null,null,null,null,null,null,null,null,null,null,null,0]
[null,null,null,null,null,null,null,null,null,null,null,0]
[null,null,null,null,null,null,null,null,null,null,null,0]
[null,null,null,null,null,null,null,null,null,null,null,0]
[null,null,null,null,null,null,null,null,null,null,null,0]
[null,null,null,null,null,null,null,null,null,null,null,0]
[null,null,null,null,null,null,null,null,null,null,null,0]
[null,null,null,null,null,null,null,null,null,null,null,0]
[null,null,null,null,null,null,null,null,null,null,null,0]
[null,null,null,null,null,null,null,null,null,null,null,0]
[null,null,null,null,null,null,null,null,null,null,null,0]
[null,null,null,null,null,null,null,null,null,null,null,0]
[null,null,null,null,null,null,null,null,null,null,null,0]
[null,null,null,null,null,null,null,null,null,null,null,0]
[null,null,null,null,null,null,null,null,null,null,null,0]
[null,null,null,null,null,null,null,null,null,null,null,0]
[null,null,null,null,null,null,null,null,null,null,null,0]
[null,null,null,null,null,null,null,null,null,null,null,0]
[null,null,null,null,null,null,null,null,null,null,null,0]
[null,null,null,null,null,null,null,null,null,null,null,0]
[null,null,null,null,null,null,null,null,null,null,null,0]
[null,null,null,null,null,null,null,null,null,null,null,0]
[null,null,null,null,null,null,null,null,null,null,null,0]
[null,null,null,null,null,null,null,null,null,null,null,0]
[null,null,null,null,null,null,null,null,null,null,null,0]
[null,null,null,null,null,null,null,null,null,null,null,0]
[null,null,null,null,null,null,null,null,null,null,null,0]
[null,null,null,null,null,null,null,null,null,null,null,0]
[null,null,null,null,null,null,null,null,null,null,null,0]
[null,null,null,null,null,null,null,null,null,null,null,0]
[null,null,null,null,null,null,null,null,null,null,null,0]
[null,null,null,null,null,null,null,null,null,null,null,0]
[null,null,null,null,null,null,null,null,null,null,null,0]
[null,null,null,null,null,null,null,null,null,null,null,0]
[null,null,null,null,null,null,null,null,null,null,null,0]
[null,null,null,null,null,null,null,null,null,null,null,0]
[null,null,null,null,null,null,null,null,null,null,null,0]
[null,null,null,null,null,null,null,null,null,null,null,0]
[null,null,null,null,null,null,null,null,null,null,null,0]
[null,null,null,null,null,null,null,null,null,null,null,{"$f":"J620*K620","v":0}]
[null,null,null,null,null,null,null,null,null,null,null,0]
[null,null,null,null,null,null,null,null,null,null,null,0]
[null,null,null,null,null,null,null,null,null,null,null,0]
[null,null,null,null,null,null,null,null,null,null,null,0]
[null,null,null,null,null,null,null,null,null,null,null,0]
[null,null,null,null,null,null,null,null,null,null,null,0]
[null,null,null,null,null,null,null,null,null,null,null,0]
[null,null,null,null,null,null,null,null,null,null,null,0]
[null,null,null,null,null,null,null,null,null,null,null,0]
[null,null,null,null,null,null,null,null,null,null,null,0]
[null,null,null,null,null,null,null,null,null,null,null,0]
[null,null,null,null,null,null,null,null,null,null,null,0]
[null,null,null,null,null,null,null,null,null,null,null,0]
[null,null,null,null,null,null,null,null,null,null,null,0]
[null,null,null,null,null,null,null,null,null,null,null,0]
[null,null,null,null,null,null,null,null,null,null,null,0]
[null,null,null,null,null,null,null,null,null,null,null,0]
[null,null,null,null,null,null,null,null,null,null,null,0]
[null,null,null,null,null,null,null,null,null,null,null,0]
[null,null,null,null,null,null,null,null,null,null,null,0]
[null,null,null,null,null,null,null,null,null,null,null,0]
[null,null,null,null,null,null,null,null,null,null,null,0]
[null,null,null,null,null,null,null,null,null,null,null,0]
[null,null,null,null,null,null,null,null,null,null,null,0]
[null,null,null,null,null,null,null,null,null,null,null,0]
[null,null,null,null,null,null,null,null,null,null,null,0]
[null,null,null,null,null,null,null,null,null,null,null,0]
[null,null,null,null,null,null,null,null,null,null,null,0]
[null,null,null,null,null,null,null,null,null,null,null,0]
[null,null,null,null,null,null,null,null,null,null,null,0]
[null,null,null,null,null,null,null,null,null,null,null,0]
[null,null,null,null,null,null,null,null,null,null,null,0]
[null,null,null,null,null,null,null,null,null,null,null,0]
[null,null,null,null,null,null,null,null,null,null,null,0]
[null,null,null,null,null,null,null,null,null,null,null,0]
[null,null,null,null,null,null,null,null,null,null,null,0]
[null,null,null,null,null,null,null,null,null,null,null,0]
[null,null,null,null,null,null,null,null,null,null,null,0]
[null,null,null,null,null,null,null,null,null,null,null,0]
[null,null,null,null,null,null,null,null,null,null,null,0]
[null,null,null,null,null,null,null,null,null,null,null,0]
[null,null,null,null,null,null,null,null,null,null,null,0]
[null,null,null,null,null,null,null,null,null,null,null,0]
[null,null,null,null,null,null,null,null,null,null,null,0]
[null,null,null,null,null,null,null,null,null,null,null,0]
[null,null,null,null,null,null,null,null,null,null,null,0]
[null,null,"Réception"]
[null,null,15616,"Papeterie","Brake France Services","Facture laser logo groupe LH / 1 sachet = 9,90 €",null,1000,"pièce",9.9000000000000008E-3,null,0]
[null,null,15625,"Papeterie","Brake Epicerie","Tête de lettre Kyriad / 1 sachet = 4,10 €",null,500,"pièce",8.2000000000000007E-3,null,0]
[null,null,15563,"Papeterie","Brake Epicerie","Bloc K Business / 1 sachet de 6 feuillets = 2,00 €",null,50,"pièce",0.04,null,0]
[null,null,15595,"Papeterie","Brake Epicerie","Chemise K Business / 1 sachet = 23,20 €",null,100,"pièce",0.23230000000000001,null,0]
[null,null,15578,"Papeterie","Brake Epicerie","Chevalet K Business / 1 sachet = 6,60 €",null,100,"pièce",6.6100000000000006E-2,null,0]
[null,null,15609,"Papeterie","Brake Epicerie","Enveloppe à fenêtre Kyriad / 1 carton = 19,70 €",null,500,"pièce",3.9320000000000001E-2,null,0]
[null,null,15561,"Divers","Brake Epicerie","Badge Kyriad / 1 sachet = 18,30 € ",null,5,"pièce",3.6680000000000001,null,0]
[null,null,18156,"Divers","Brake Epicerie","Trousse dépannage Homme Kyriad",null,1,"pièce",7.12,null,0]
[null,null,18160,"Divers","Brake Epicerie","Trousse dépannage Femme Kyriad",null,1,"pièce",7.09,null,0]
[null,null,"PACK2EE806G","Ampoules","Castorama","Ampoule / 1 lot = 30,90 €",null,2,"pièce",15.45,null,0]
[null,null,18611,"Ampoules","Orbitec","Ampoule orbitée / 1 lot = 17,40 €",null,5,"pièce",3.48,null,0]
[null,null,35116,"Ampoules","Lezampoule","Ampoule Sylvania / 1 lot = 20,50 €",null,10,"pièce",2.0499999999999998,null,0]
[null,null,4853970,"Papeterie","OfficeDépôt","Boite archive bleu / 1 lot = 14,70 €",null,50,"pièce",0.29399999999999998,null,0]
[null,null,null,"Divers","Autre","Aimants",null,null,null,null,null,0]
[null,null,13758,"Papeterie","OfficeDépôt","Bristol d'indexage / 1 lot = 7,656 €",null,24,"pièce",0.31900000000000001,null,0]
[null,null,null,"Papeterie","Didre","Carte de correspondance",null,null,"pièce",0.161,null,{"$f":"J683*K683","v":0}]
[null,null,null,"Papeterie","Didre","Carte de visite M. GARDIN / 1 lot = 31,00 €",null,1000,"pièce",3.1E-2,null,0]
[null,null,null,"Papeterie","Exarepro","Dépliant 3 volets présentation de l'hôtel / 1 lot = 162,90 €",null,900,"pièce",0.18099999999999999,null,0]
[null,null,210190,"Papeterie","OfficeDépôt","Enveloppe à trois souflets / 1 lot = 32,00 €",null,50,"pièce",0.64,null,0]
[null,null,null,"Papeterie","OfficeDépôt","Enveloppe blanche sans fenêtre",null,null,"pièce",null,null,0]
[null,null,2075814,"Papeterie","OfficeDépôt","Enveloppe craft 162*229 / 1 lot = 21,00€",null,500,"pièce",4.2000000000000003E-2,null,0]
[null,null,null,"Papeterie","OfficeDépôt","Enveloppe craft A4",null,null,"pièce",4.2000000000000003E-2,null,0]
[null,null,null,"Papeterie","La Poste","Enveloppe prête à poste",null,null,null,null,null,0]
[null,null,15593,"Papeterie","Réception","Enveloppe blanche sans fenêtre Kyriad / 1 carton = 24,58 €",null,500,"pièce",4.9160000000000002E-2,null,0]
[null,null,null,"Papeterie","OfficeDépôt","Feuille A4 blanche / 1 lot = 15,00 €",null,2500,"pièce",6.0000000000000001E-3,null,0]
[null,null,null,"Papeterie","Réception","Flyer P4U",null,1,"pièce",null,null,0]
[null,null,"4812E","Papeterie","OfficeDépôt","Intercalair exacompta / 1 lot = 1,716 €",null,12,"pièce",0.14299999999999999,null,0]
[null,null,5915106,"Papeterie","OfficeDépôt","Intercalair Office Dépôt alpha / 1 lot = 2,86 €",null,20,"pièce",0.14299999999999999,null,0]
[null,null,null,"Papeterie","OfficeDépôt","Marqueur permanent / 1 lot = 3,08 €",null,4,"pièce",0.77,null,0]
[null,null,55622480,"Papeterie","OfficeDépôt","Ote agrafe",null,1,"pièce",0.41,null,0]
[null,null,null,"Papeterie","OfficeDépôt","Papier A4 Clairefontaine bleu / 1 lot = 10,00 €",null,500,"pièce",0.02,null,0]
[null,null,null,"Papeterie",null,"Blocnote Batistore",null,1,"pièce",null,null,0]
[null,null,null,"Papeterie","OfficeDépôt","Papier paperboard / 1 lot = 43,00 €",null,250,"pièce",0.17199999999999999,null,0]
[null,null,null,"Papeterie","Réception","Présentoir P4U",null,1,"pièce",null,null,0]
[null,null,null,"Papeterie","Réception","Présentoir Pasta Box",null,null,null,null,null,0]
[null,null,5068422,"Papeterie","OfficeDépôt","Relieur archive / 1 lot = 5,55 €",null,50,"pièce",0.111,null,0]
[null,null,3399791,"Papeterie","OfficeDépôt","Ruban adhésif brun / 1 lot = 3,432 €",null,6,"pièce",0.57199999999999995,null,0]
[null,null,null,"Papeterie","OfficeDépôt","Ruban adhésif OfficeDépôt",null,null,"pièce",null,null,0]
[null,null,null,"Papeterie","OfficeDépôt","Ruban adhésif Scotch / 1 lot = 24,50 €",null,10,"pièce",2.4500000000000002,null,0]
[null,null,3359362,"Papeterie","OfficeDépôt","Pochette transparente OfficeDépôt / 1 lot = 7,10 €",null,100,"pièce",7.0999999999999994E-2,null,0]
[null,null,null,"Cigarettes","Tabac","Camel",null,1,"pièce",6.9,null,0]
[null,null,null,"Cigarettes","Tabac","Marlboro",null,1,"pièce",7,null,0]
[null,null,null,"Cigarettes","Tabac","News",null,1,"pièce",6.5,null,0]
[null,null,15663,"Papeterie","Brake France Services","Papier toilette Ouate blanche / 1 carton = 16,30 € ",null,96,"pièce",0.16979159999999999,null,0]
[null,null,null,null,null,null,null,null,null,null,null,0]
[null,null,null,null,null,null,null,null,null,null,null,0]
[null,null,null,null,null,null,null,null,null,null,null,0]
[null,null,null,null,null,null,null,null,null,null,null,0]
[null,null,null,null,null,null,null,null,null,null,null,0]
[null,null,null,null,null,null,null,null,null,null,null,0]
[null,null,null,null,null,null,null,null,null,null,null,0]
[null,null,null,null,null,null,null,null,null,null,null,0]
[null,null,null,null,null,null,null,null,null,null,null,0]
[null,null,null,null,null,null,null,null,null,null,null,0]
[null,null,null,null,null,null,null,null,null,null,null,0]
[null,null,null,null,null,null,null,null,null,null,null,0]
[null,null,null,null,null,null,null,null,null,null,null,0]
[null,null,null,null,null,null,null,null,null,null,null,0]
[null,null,null,null,null,null,null,null,null,null,null,0]
[null,null,null,null,null,null,null,null,null,null,null,0]
[null,null,null,null,null,null,null,null,null,null,null,0]
[null,null,null,null,null,null,null,null,null,null,null,0]
[null,null,null,null,null,null,null,null,null,null,null,0]
[null,null,null,null,null,null,null,null,null,null,null,0]
[null,null,null,null,null,null,null,null,null,null,null,0]
[null,null,null,null,null,null,null,null,null,null,null,0]
[null,null,null,null,null,null,null,null,null,null,null,0]
[null,null,null,null,null,null,null,null,null,null,null,0]
[null,null,null,null,null,null,null,null,null,null,null,0]
[null,null,null,null,null,null,null,null,null,null,null,0]
[null,null,null,null,null,null,null,null,null,null,null,0]
[null,null,null,null,null,null,null,null,null,null,null,0]
[null,null,null,null,null,null,null,null,null,null,null,0]
[null,null,null,null,null,null,null,null,null,null,null,0]
[null,null,null,null,null,null,null,null,null,null,null,0]
[null,null,null,null,null,null,null,null,null,null,null,0]
[null,null,null,null,null,null,null,null,null,null,null,0]
[null,null,null,null,null,null,null,null,null,null,null,0]
[null,null,null,null,null,null,null,null,null,null,null,0]
[null,null,null,null,null,null,null,null,null,null,null,{"$f":"J747*K747","v":0}]
[null,null,null,null,null,null,null,null,null,null,null,0]
[null,null,null,null,null,null,null,null,null,null,null,0]
[null,null,null,null,null,null,null,null,null,null,null,0]
[null,null,null,null,null,null,null,null,null,null,null,0]
[null,null,null,null,null,null,null,null,null,null,null,0]
[null,null,null,null,null,null,null,null,null,null,null,0]
[null,null,null,null,null,null,null,null,null,null,null,0]
[null,null,null,null,null,null,null,null,null,null,null,0]
[null,null,null,null,null,null,null,null,null,null,null,0]
[null,null,null,null,null,null,null,null,null,null,null,0]
[null,null,null,null,null,null,null,null,null,null,null,0]
[null,null,null,null,null,null,null,null,null,null,null,0]
[null,null,null,null,null,null,null,null,null,null,null,0]
[null,null,null,null,null,null,null,null,null,null,null,0]
[null,null,null,null,null,null,null,null,null,null,null,0]
[null,null,null,null,null,null,null,null,null,null,null,0]
[null,null,null,null,null,null,null,null,null,null,null,0]
[null,null,null,null,null,null,null,null,null,null,null,0]
[null,null,null,null,null,null,null,null,null,null,null,0]
[null,null,null,null,null,null,null,null,null,null,null,0]
[null,null,null,null,null,null,null,null,null,null,null,0]
[null,null,null,null,null,null,null,null,null,null,null,0]
[null,null,null,null,null,null,null,null,null,null,null,0]
[null,null,null,null,null,null,null,null,null,null,null,0]
[null,null,null,null,null,null,null,null,null,null,null,0]
[null,null,null,null,null,null,null,null,null,null,null,0]
[null,null,null,null,null,null,null,null,null,null,null,0]
[null,null,null,null,null,null,null,null,null,null,null,0]
[null,null,null,null,null,null,null,null,null,null,null,0]
[null,null,null,null,null,null,null,null,null,null,null,0]
[null,null,null,null,null,null,null,null,null,null,null,0]
[null,null,null,null,null,null,null,null,null,null,null,0]
[null,null,null,null,null,null,null,null,null,null,null,0]
[null,null,null,null,null,null,null,null,null,null,null,0]
[null,null,null,null,null,null,null,null,null,null,null,0]
[null,null,null,null,null,null,null,null,null,null,null,0]
[null,null,null,null,null,null,null,null,null,null,null,0]
[null,null,null,null,null,null,null,null,null,null,null,0]
[null,null,null,null,null,null,null,null,null,null,null,0]
[null,null,null,null,null,null,null,null,null,null,null,0]
[null,null,null,null,null,null,null,null,null,null,null,0]
[null,null,null,null,null,null,null,null,null,null,null,0]
[null,null,null,null,null,null,null,null,null,null,null,0]
[null,null,null,null,null,null,null,null,null,null,null,0]
[null,null,null,null,null,null,null,null,null,null,null,0]
[null,null,null,null,null,null,null,null,null,null,null,0]
[null,null,null,null,null,null,null,null,null,null,null,0]
[null,null,null,null,null,null,null,null,null,null,null,0]
[null,null,null,null,null,null,null,null,null,null,null,0]
[null,null,null,null,null,null,null,null,null,null,null,0]
[null,null,null,null,null,null,null,null,null,null,null,0]
[null,null,null,null,null,null,null,null,null,null,null,0]
[null,null,null,null,null,null,null,null,null,null,null,0]
[null,null,null,null,null,null,null,null,null,null,null,0]
[null,null,null,null,null,null,null,null,null,null,null,0]
[null,null,null,null,null,null,null,null,null,null,null,0]
[null,null,null,null,null,null,null,null,null,null,null,0]
[null,null,null,null,null,null,null,null,null,null,null,0]
[null,null,null,null,null,null,null,null,null,null,null,0]
[null,null,null,null,null,null,null,null,null,null,null,0]
[null,null,null,null,null,null,null,null,null,null,null,0]
[null,null,null,null,null,null,null,null,null,null,null,0]
[null,null,null,null,null,null,null,null,null,null,null,0]
[null,null,null,null,null,null,null,null,null,null,null,{"$f":"J811*K811","v":0}]
[null,null,null,null,null,null,null,null,null,null,null,0]
[null,null,null,null,null,null,null,null,null,null,null,0]
[null,null,null,null,null,null,null,null,null,null,null,0]
[null,null,null,null,null,null,null,null,null,null,null,0]
[null,null,null,null,null,null,null,null,null,null,null,0]
[null,null,null,null,null,null,null,null,null,null,null,0]
[null,null,null,null,null,null,null,null,null,null,null,0]
[null,null,null,null,null,null,null,null,null,null,null,0]
[null,null,null,null,null,null,null,null,null,null,null,0]
[null,null,null,null,null,null,null,null,null,null,null,0]
[null,null,null,null,null,null,null,null,null,null,null,0]
[null,null,null,null,null,null,null,null,null,null,null,0]
[null,null,null,null,null,null,null,null,null,null,null,0]
[null,null,null,null,null,null,null,null,null,null,null,0]
[null,null,null,null,null,null,null,null,null,null,null,0]
[null,null,null,null,null,null,null,null,null,null,null,0]
[null,null,null,null,null,null,null,null,null,null,null,0]
[null,null,null,null,null,null,null,null,null,null,null,0]
[null,null,null,null,null,null,null,null,null,null,null,0]
[null,null,null,null,null,null,null,null,null,null,null,0]
[null,null,null,null,null,null,null,null,null,null,null,0]
[null,null,null,null,null,null,null,null,null,null,null,0]
[null,null,null,null,null,null,null,null,null,null,null,0]
[null,null,null,null,null,null,null,null,null,null,null,0]
[null,null,null,null,null,null,null,null,null,null,null,0]
[null,null,null,null,null,null,null,null,null,null,null,0]
[null,null,null,null,null,null,null,null,null,null,null,0]
[null,null,null,null,null,null,null,null,null,null,null,0]
[null,null,null,null,null,null,null,null,null,null,null,0]
[null,null,null,null,null,null,null,null,null,null,null,0]
[null,null,null,null,null,null,null,null,null,null,null,0]
[null,null,null,null,null,null,null,null,null,null,null,0]
[null,null,null,null,null,null,null,null,null,null,null,0]
[null,null,null,null,null,null,null,null,null,null,null,0]
[null,null,null,null,null,null,null,null,null,null,null,0]
[null,null,null,null,null,null,null,null,null,null,null,0]
[null,null,null,null,null,null,null,null,null,null,null,0]
[null,null,null,null,null,null,null,null,null,null,null,0]
[null,null,null,null,null,null,null,null,null,null,null,0]
[null,null,null,null,null,null,null,null,null,null,null,0]
[null,null,null,null,null,null,null,null,null,null,null,0]
[null,null,null,null,null,null,null,null,null,null,null,0]
[null,null,null,null,null,null,null,null,null,null,null,0]
[null,null,null,null,null,null,null,null,null,null,null,0]
[null,null,null,null,null,null,null,null,null,null,null,0]
[null,null,null,null,null,null,null,null,null,null,null,0]
[null,null,null,null,null,null,null,null,null,null,null,0]
[null,null,null,null,null,null,null,null,null,null,null,0]
[null,null,null,null,null,null,null,null,null,null,null,0]
[null,null,null,null,null,null,null,null,null,null,null,0]
[null,null,null,null,null,null,null,null,null,null,null,0]
[null,null,null,null,null,null,null,null,null,null,null,0]
[null,null,null,null,null,null,null,null,null,null,null,0]
[null,null,null,null,null,null,null,null,null,null,null,0]
[null,null,"Entretien"]
[null,null,null,"Nettoyant","Diversey","D10",null,4,"pièce",16.53,null,0]
[null,null,null,"Nettoyant","Delta","Djuna 2",null,1,"pièce",20.059999999999999,null,0]
[null,null,null,"Nettoyant","Diversey","Good Sense",null,null,null,null,null,0]
[null,null,null,"Nettoyant","Delta","Insecticide One Shot / 1 lot = 118,56 €",null,12,"pièce",9.8800000000000008,null,0]
[null,null,null,"Nettoyant","Diversey","Jontex 300 Pure Eco",null,2,"pièce",17.34,null,0]
[null,null,null,"Nettoyant","IPC","Magic Room",null,10,"pièce",6.3330000000000002,null,0]
[null,null,null,"Nettoyant","Autre","Nettoyant anti-moisissure",null,null,null,null,null,0]
[null,null,null,"Nettoyant","Diversey","R1 / 1 lot = 69,90 €",null,2,"pièce",35.450000000000003,null,0]
[null,null,null,"Nettoyant","Diversey","R2 / 1 lot = 86,70 €",null,2,"pièce",43.35,null,{"$f":"J875*K875","v":0}]
[null,null,null,"Nettoyant","Diversey","R3 / 1 lot = 86,70 €",null,2,"pièce",43.35,null,0]
[null,null,null,"Nettoyant","Diversey","R5 / 1 lot = 101,70 €",null,1,"pièce",101.69,null,0]
[null,null,null,"Nettoyant","Diversey","Soft Care Foam / 1 lot = 30,60 €",null,6,"pièce",5.0999999999999996,null,0]
[null,null,null,"Nettoyant","Diversey","Soft Care Sensisept / 1 lot = 11,70 €",null,2,"pièce",5.85,null,0]
[null,null,null,"Nettoyant","Diversey","Soft Care Silk / 1 lot = 11,70 €",null,2,"pièce",5.85,null,0]
[null,null,null,"Nettoyant","Delta","Tropical SunRise",null,6,"pièce",null,null,0]
[null,null,null,"Nettoyant","Diversey","H200 / 1 lot = 73,92 €",null,6,"pièce",12.32,null,0]
[null,null,null,"Nettoyant","IPC","Biocan",null,6,"pièce",24.013000000000002,null,0]
[null,null,null,null,null,null,null,null,null,null,null,0]
[null,null,null,null,null,null,null,null,null,null,null,0]
[null,null,null,null,null,null,null,null,null,null,null,0]
[null,null,null,null,null,null,null,null,null,null,null,0]
[null,null,null,null,null,null,null,null,null,null,null,0]
[null,null,null,null,null,null,null,null,null,null,null,0]
[null,null,null,null,null,null,null,null,null,null,null,0]
[null,null,null,null,null,null,null,null,null,null,null,0]
[null,null,null,null,null,null,null,null,null,null,null,0]
[null,null,null,null,null,null,null,null,null,null,null,0]
[null,null,null,null,null,null,null,null,null,null,null,0]
[null,null,null,null,null,null,null,null,null,null,null,0]
[null,null,null,null,null,null,null,null,null,null,null,0]
[null,null,null,null,null,null,null,null,null,null,null,0]
[null,null,null,null,null,null,null,null,null,null,null,0]
[null,null,null,null,null,null,null,null,null,null,null,0]
[null,null,null,null,null,null,null,null,null,null,null,0]
[null,null,null,null,null,null,null,null,null,null,null,0]
[null,null,null,null,null,null,null,null,null,null,null,0]
[null,null,null,null,null,null,null,null,null,null,null,0]
[null,null,null,null,null,null,null,null,null,null,null,0]
[null,null,null,null,null,null,null,null,null,null,null,0]
[null,null,null,null,null,null,null,null,null,null,null,0]
[null,null,null,null,null,null,null,null,null,null,null,0]
[null,null,null,null,null,null,null,null,null,null,null,0]
[null,null,null,null,null,null,null,null,null,null,null,0]
[null,null,null,null,null,null,null,null,null,null,null,0]
[null,null,null,null,null,null,null,null,null,null,null,0]
[null,null,null,null,null,null,null,null,null,null,null,0]
[null,null,null,null,null,null,null,null,null,null,null,0]
[null,null,null,null,null,null,null,null,null,null,null,0]
[null,null,null,null,null,null,null,null,null,null,null,0]
[null,null,null,null,null,null,null,null,null,null,null,0]
[null,null,null,null,null,null,null,null,null,null,null,0]
[null,null,null,null,null,null,null,null,null,null,null,0]
[null,null,null,null,null,null,null,null,null,null,null,0]
[null,null,null,null,null,null,null,null,null,null,null,0]
[null,null,null,null,null,null,null,null,null,null,null,0]
[null,null,null,null,null,null,null,null,null,null,null,0]
[null,null,null,null,null,null,null,null,null,null,null,0]
[null,null,null,null,null,null,null,null,null,null,null,0]
[null,null,null,null,null,null,null,null,null,null,null,0]
[null,null,null,null,null,null,null,null,null,null,null,0]
[null,null,null,null,null,null,null,null,null,null,null,0]
[null,null,null,null,null,null,null,null,null,null,null,0]
[null,null,null,null,null,null,null,null,null,null,null,0]
[null,null,null,null,null,null,null,null,null,null,null,0]
[null,null,null,null,null,null,null,null,null,null,null,0]
[null,null,null,null,null,null,null,null,null,null,null,0]
[null,null,null,null,null,null,null,null,null,null,null,0]
[null,null,null,null,null,null,null,null,null,null,null,0]
[null,null,null,null,null,null,null,null,null,null,null,0]
[null,null,null,null,null,null,null,null,null,null,null,0]
[null,null,null,null,null,null,null,null,null,null,null,0]
[null,null,null,null,null,null,null,null,null,null,null,0]
[null,null,null,null,null,null,null,null,null,null,null,{"$f":"J939*K939","v":0}]
[null,null,null,null,null,null,null,null,null,null,null,0]
[null,null,null,null,null,null,null,null,null,null,null,0]
[null,null,null,null,null,null,null,null,null,null,null,0]
[null,null,null,null,null,null,null,null,null,null,null,0]
[null,null,null,null,null,null,null,null,null,null,null,0]
[null,null,null,null,null,null,null,null,null,null,null,0]
[null,null,null,null,null,null,null,null,null,null,null,0]
[null,null,null,null,null,null,null,null,null,null,null,0]
[null,null,null,null,null,null,null,null,null,null,null,0]
[null,null,null,null,null,null,null,null,null,null,null,0]
[null,null,null,null,null,null,null,null,null,null,null,0]
[null,null,null,null,null,null,null,null,null,null,null,0]
[null,null,null,null,null,null,null,null,null,null,null,0]
[null,null,null,null,null,null,null,null,null,null,null,0]
[null,null,null,null,null,null,null,null,null,null,null,0]
[null,null,null,null,null,null,null,null,null,null,null,0]
[null,null,null,null,null,null,null,null,null,null,null,0]
[null,null,null,null,null,null,null,null,null,null,null,0]
[null,null,null,null,null,null,null,null,null,null,null,0]
[null,null,null,null,null,null,null,null,null,null,null,0]
[null,null,null,null,null,null,null,null,null,null,null,0]
[null,null,null,null,null,null,null,null,null,null,null,0]
[null,null,null,null,null,null,null,null,null,null,null,0]
[null,null,null,null,null,null,null,null,null,null,null,0]
[null,null,null,null,null,null,null,null,null,null,null,0]
[null,null,null,null,null,null,null,null,null,null,null,0]
[]
[null,null,null,"Ratio PDJ",null,null,{"$f":"IF(RATIOS!B12>25%,\"INCORRECT\",IF(RATIOS!B12<15%,\"INCORRECT\",\"CORRECT\"))","v":"INCORRECT"},"Stock final PDJ",null,null,{"$f":"SUM(L7:L89)","v":0}]
[null,null,null,"Ratio Séminaire",null,null,{"$f":"IF(RATIOS!B13>25%,\"INCORRECT\",IF(RATIOS!B13<15%,\"INCORRECT\",\"CORRECT\"))","v":"INCORRECT"},"Stock final Séminaire",null,null,{"$f":"SUM(L91:L188)","v":0}]
[null,null,null,"Ratio Bar Nourriture",null,null,{"$f":"IF(RATIOS!B14>25%,\"INCORRECT\",IF(RATIOS!B14<15%,\"INCORRECT\",\"CORRECT\"))","v":"INCORRECT"},"Stock final Bar Boisson",null,null,{"$f":"SUM(L190:L332)","v":0}]
[null,null,null,"Ratio Bar Boisson",null,null,{"$f":"IF(RATIOS!B15>25%,\"INCORRECT\",IF(RATIOS!B15<15%,\"INCORRECT\",\"CORRECT\"))","v":"INCORRECT"},"Stock final Bar Nourriture",null,null,{"$f":"SUM(L334:L390)","v":0}]
[null,null,null,"Cliquez ici pour                                                 EXPORTER & CLOTURER                                       notre inventaire",null,null,null,"Stock final Produits d'accueil",null,null,{"$f":"SUM(L483:L666)","v":0}]
[null,null,null,null,null,null,null,"Stock final Réception",null,null,{"$f":"SUM(L668:L865)","v":0}]
[null,null,null,null,null,null,null,"Stock final Entretien",null,null,{"$f":"SUM(L867:L965)","v":0}]
[null,null,null,null,null,null,null,"Stock final total",null,null,{"$f":"SUM(K967:L973)","v":0}]
[null,null,null,null,null,null,null,"Kyriad Angers Ouest Beaucouzé"]

{"sheet":"PERTE","index":2,"n_rows":73,"n_cols":51,"rows_kept":73,"cut":false,"hidden":false,"merged":[[0,11,0,13],[0,8,0,9]]}
[null,null,null,null,null,null,null,null,"Choisir le code Store en colonne C"]
[null,null," Saisie Code Store",null,null,null,null,null,"Mettre sur la feuille de perte","Produit",null,"Unité initiale",null,"Prix unitaire",null,null,null,null,"TOTAL PERTES","COUT TOTAL","Pertes du 1er","Pertes du 2","Pertes du 3","Pertes du 4","Pertes du 5","Pertes du 6","Pertes du 7","Pertes du 8","Pertes du 9","Pertes du 10","Pertes du 11","Pertes du 12","Pertes du 13","Pertes du 14","Pertes du 15","Pertes du 16","Pertes du 17","Pertes du 18","Pertes du 19","Pertes du 20","Pertes du 21","Pertes du 22","Pertes du 23","Pertes du 24","Pertes du 25","Pertes du 26","Pertes du 27","Pertes du 28","Pertes du 29","Pertes du 30","Pertes du 31"]
[null,null,"PETIT-DEJEUNER"]
[null,null,80605,null,null,null,null,null,"oui",{"$f":"IF(ISNA(VLOOKUP(C4,Petit_Déjeuner,4,0)),\" \",VLOOKUP(C4,Petit_Déjeuner,4,0))","v":"Yaourt aux fruits Danone 125g / 1 carton = 12,9 €"},null,{"$f":"IF(ISNA(VLOOKUP(C4,Petit_Déjeuner,7,0)),\" \",VLOOKUP(C4,Petit_Déjeuner,7,0))","v":"pièce"},null,{"$f":"IF(ISNA(VLOOKUP(C4,Petit_Déjeuner,8,0)),\" \",VLOOKUP(C4,Petit_Déjeuner,8,0))","v":0.26874999999999999},null,null,null,"oui",{"$f":"SUM(U4:AY4)","v":72},{"$f":"IF(ISERR(N4*S4),\" \",N4*S4)","v":19.349999999999998}," "," ",72," "," "," "," "," "," "," "," "," "," "," "," "," "," "," "," "," "," "," "," "," "," "," "," "," "," "," "," "]
[null,null," ",null,null,null,null,null,"oui",{"$f":"IF(ISNA(VLOOKUP(C5,Petit_Déjeuner,4,0)),\" \",VLOOKUP(C5,Petit_Déjeuner,4,0))","v":" "},null," ",null," ",null,null,null,"non",0,{"$f":"IF(ISERR(N5*S5),\" \",N5*S5)","v":" "}," "," "," "," "," "," "," "," "," "," "," "," "," "," "," "," "," "," "," "," "," "," "," "," "," "," "," "," "," "," "," "]
[null,null," ",null,null,null,null,null,"oui"," ",null," ",null," ",null,null,null,null,0," "," "," "," "," "," "," "," "," "," "," "," "," "," "," "," "," "," "," "," "," "," "," "," "," "," "," "," "," "," "," "," "]
[null,null," ",null,null,null,null,null,"oui"," ",null," ",null," ",null,null,null,null,0," "," "," "," "," "," "," "," "," "," "," "," "," "," "," "," "," "," "," "," "," "," "," "," "," "," "," "," "," "," "," "," "]
[null,null," ",null,null,null,null,null,"oui"," ",null," ",null," ",null,null,null,null,0," "," "," "," "," "," "," "," "," "," "," "," "," "," "," "," "," "," "," "," "," "," "," "," "," "," "," "," "," "," "," "," "]
[null,null," ",null,null,null,null,null,"oui"," ",null," ",null," ",null,null,null,null,0," "," "," "," "," "," "," "," "," "," "," "," "," "," "," "," "," "," "," "," "," "," "," "," "," "," "," "," "," "," "," "," "]
[null,null," ",null,null,null,null,null,"oui"," ",null," ",null," ",null,null,null,null,0," "," "," "," "," "," "," "," "," "," "," "," "," "," "," "," "," "," "," "," "," "," "," "," "," "," "," "," "," "," "," "," "]
[null,null," ",null,null,null,null,null,"oui"," ",null," ",null," ",null,null,null,null,0," "," "," "," "," "," "," "," "," "," "," "," "," "," "," "," "," "," "," "," "," "," "," "," "," "," "," "," "," "," "," "," "]
[null,null," ",null,null,null,null,null,"oui"," ",null," ",null," ",null,null,null,null,0," "," "," "," "," "," "," "," "," "," "," "," "," "," "," "," "," "," "," "," "," "," "," "," "," "," "," "," "," "," "," "," "]
[null,null," ",null,null,null,null,null,"oui"," ",null," ",null," ",null,null,null,null,0," "," "," "," "," "," "," "," "," "," "," "," "," "," "," "," "," "," "," "," "," "," "," "," "," "," "," "," "," "," "," "," "]
[null,null," ",null,null,null,null,null,"oui"," ",null," ",null," ",null,null,null,null,0," "," "," "," "," "," "," "," "," "," "," "," "," "," "," "," "," "," "," "," "," "," "," "," "," "," "," "," "," "," "," "," "]
[null,null," ",null,null,null,null,null,"oui"," ",null," ",null," ",null,null,null,null,0," "," "," "," "," "," "," "," "," "," "," "," "," "," "," "," "," "," "," "," "," "," "," "," "," "," "," "," "," "," "," "," "]
[null,null," ",null,null,null,null,null,"oui"," ",null," ",null," ",null,null,null,null,0," "," "," "," "," "," "," "," "," "," "," "," "," "," "," "," "," "," "," "," "," "," "," "," "," "," "," "," "," "," "," "," "]
[null,null," ",null,null,null,null,null,"oui"," ",null," ",null," ",null,null,null,null,0," "," "," "," "," "," "," "," "," "," "," "," "," "," "," "," "," "," "," "," "," "," "," "," "," "," "," "," "," "," "," "," "]
[null,null," ",null,null,null,null,null,"oui"," ",null," ",null," ",null,null,null,null,0," "," "," "," "," "," "," "," "," "," "," "," "," "," "," "," "," "," "," "," "," "," "," "," "," "," "," "," "," "," "," "," "]
[null,null," ",null,null,null,null,null,"oui"," ",null," ",null," ",null,null,null,null,0," "," "," "," "," "," "," "," "," "," "," "," "," "," "," "," "," "," "," "," "," "," "," "," "," "," "," "," "," "," "," "," "]
[null,null,"SEMINAIRE",null,null,null,null,null,null,null,null," ",null," ",null,null,null,null,null," ",1,2,3,4,5,6,7,8,9,10,11,12,13,14,15,16,17,18,19,20,21,22,23,24,25,26,27,28,29,30,31]
[null,null,15682,null,null,null,null,null,"oui",{"$f":"IF(ISNA(VLOOKUP(C21,SEminaire,4,0)),\" \",VLOOKUP(C21,SEminaire,4,0))","v":"Sous-main K Business / 1 lot = 226,223 €"},null,{"$f":"IF(ISNA(VLOOKUP(C21,SEminaire,7,0)),\" \",VLOOKUP(C21,SEminaire,7,0))","v":"pièce"},null,{"$f":"IF(ISNA(VLOOKUP(C21,SEminaire,8,0)),\" \",VLOOKUP(C21,SEminaire,8,0))","v":4.5244600000000004},null,null,null,null,3,13.57338,null,null,3]
[null,null,null,null,null,null,null,null,"oui"," ",null," ",null," ",null,null,null,null,0," "]
[null,null,null,null,null,null,null,null,"oui"," ",null," ",null," ",null,null,null,null,0," "]
[null,null,null,null,null,null,null,null,"oui"," ",null," ",null," ",null,null,null,null,0," "]
[null,null,null,null,null,null,null,null,"oui"," ",null," ",null," ",null,null,null,null,0," "]
[null,null,null,null,null,null,null,null,"oui"," ",null," ",null," ",null,null,null,null,0," "]
[null,null,null,null,null,null,null,null,"oui"," ",null," ",null," ",null,null,null,null,0," "]
[null,null,null,null,null,null,null,null,"oui"," ",null," ",null," ",null,null,null,null,0," "]
[null,null,null,null,null,null,null,null,"oui"," ",null," ",null," ",null,null,null,null,0," "]
[null,null,null,null,null,null,null,null,"oui"," ",null," ",null," ",null,null,null,null,0," "]
[null,null,null,null,null,null,null,null,"oui"," ",null," ",null," ",null,null,null,null,0," "]
[null,null,null,null,null,null,null,null,"oui"," ",null," ",null," ",null,null,null,null,0," "]
[null,null,null,null,null,null,null,null,"oui"," ",null," ",null," ",null,null,null,null,0," "]
[null,null,null,null,null,null,null,null,"oui"," ",null," ",null," ",null,null,null,null,0," "]
[null,null,null,null,null,null,null,null,"oui"," ",null," ",null," ",null,null,null,null,0," "]
[null,null,null,null,null,null,null,null,"oui"," ",null," ",null," ",null,null,null,null,{"$f":"SUM(U36:AY36)","v":0}," "]
[null,null,"BAR BOISSONS",null,null,null,null,null,null,null,null,{"$f":"IF(ISNA(VLOOKUP(C37,Petit_Déjeuner,7,0)),\" \",VLOOKUP(C37,Petit_Déjeuner,7,0))","v":" "},null,{"$f":"IF(ISNA(VLOOKUP(C37,Petit_Déjeuner,8,0)),\" \",VLOOKUP(C37,Petit_Déjeuner,8,0))","v":" "},null,null,null,null,null," ",1,2,3,4,5,6,7,8,9,10,11,12,13,14,15,16,17,18,19,20,21,22,23,24,25,26,27,28,29,30,31]
[null,null,null,null,null,null,null,null,"oui",{"$f":"IF(ISNA(VLOOKUP(C38,BARBOISSON,4,0)),\" \",VLOOKUP(C38,BARBOISSON,4,0))","v":" "},null,{"$f":"IF(ISNA(VLOOKUP(C38,BARBOISSON,7,0)),\" \",VLOOKUP(C38,BARBOISSON,7,0))","v":" "},null,{"$f":"IF(ISNA(VLOOKUP(C38,BARBOISSON,8,0)),\" \",VLOOKUP(C38,BARBOISSON,8,0))","v":" "},null,null,null,null,0," "]
[null,null,null,null,null,null,null,null,"oui"," ",null," ",null," ",null,null,null,null,0," "]
[null,null,null,null,null,null,null,null,"oui"," ",null," ",null," ",null,null,null,null,0," "]
[null,null,null,null,null,null,null,null,"oui"," ",null," ",null," ",null,null,null,null,0," "]
[null,null,null,null,null,null,null,null,"oui"," ",null," ",null," ",null,null,null,null,0," "]
[null,null,null,null,null,null,null,null,"oui"," ",null," ",null," ",null,null,null,null,0," "]
[null,null,null,null,null,null,null,null,"oui"," ",null," ",null," ",null,null,null,null,0," "]
[null,null,null,null,null,null,null,null,"oui"," ",null," ",null," ",null,null,null,null,0," "]
[null,null,null,null,null,null,null,null,"oui"," ",null," ",null," ",null,null,null,null,0," "]
[null,null,null,null,null,null,null,null,"oui"," ",null," ",null," ",null,null,null,null,0," "]
[null,null,null,null,null,null,null,null,"oui"," ",null," ",null," ",null,null,null,null,0," "]
[null,null,null,null,null,null,null,null,"oui"," ",null," ",null," ",null,null,null,null,0," "]
[null,null,null,null,null,null,null,null,"oui"," ",null," ",null," ",null,null,null,null,0," "]
[null,null,null,null,null,null,null,null,"oui"," ",null," ",null," ",null,null,null,null,0," "]
[null,null,null,null,null,null,null,null,"oui"," ",null," ",null," ",null,null,null,null,0," "]
[null,null,null,null,null,null,null,null,"oui"," ",null," ",null," ",null,null,null,null,0," "]
[null,null,"BAR NOURRITURE",null,null,null,null,null,null,null,null,{"$f":"IF(ISNA(VLOOKUP(C54,Petit_Déjeuner,7,0)),\" \",VLOOKUP(C54,Petit_Déjeuner,7,0))","v":" "},null,{"$f":"IF(ISNA(VLOOKUP(C54,Petit_Déjeuner,8,0)),\" \",VLOOKUP(C54,Petit_Déjeuner,8,0))","v":" "},null,null,null,null,null," ",1,2,3,4,5,6,7,8,9,10,11,12,13,14,15,16,17,18,19,20,21,22,23,24,25,26,27,28,29,30,31]
[null,null,null,null,null,null,null,null,"oui",{"$f":"IF(ISNA(VLOOKUP(C55,BARNOURRITURE,4,0)),\" \",VLOOKUP(C55,BARNOURRITURE,4,0))","v":" "},null,{"$f":"IF(ISNA(VLOOKUP(C55,BARNOURRITURE,7,0)),\" \",VLOOKUP(C55,BARNOURRITURE,7,0))","v":" "},null,{"$f":"IF(ISNA(VLOOKUP(C55,BARNOURRITURE,8,0)),\" \",VLOOKUP(C55,BARNOURRITURE,8,0))","v":" "},null,null,null,null,0," "]
[null,null,null,null,null,null,null,null,"oui"," ",null," ",null," ",null,null,null,null,0," "]
[null,null,null,null,null,null,null,null,"oui"," ",null," ",null," ",null,null,null,null,0," "]
[null,null,null,null,null,null,null,null,"oui"," ",null," ",null," ",null,null,null,null,0," "]
[null,null,null,null,null,null,null,null,"oui"," ",null," ",null," ",null,null,null,null,0," "]
[null,null,null,null,null,null,null,null,"oui"," ",null," ",null," ",null,null,null,null,0," "]
[null,null,null,null,null,null,null,null,"oui"," ",null," ",null," ",null,null,null,null,0," "]
[null,null,null,null,null,null,null,null,"oui"," ",null," ",null," ",null,null,null,null,0," "]
[null,null,null,null,null,null,null,null,"oui"," ",null," ",null," ",null,null,null,null,0," "]
[null,null,null,null,null,null,null,null,"oui"," ",null," ",null," ",null,null,null,null,0," "]
[null,null,null,null,null,null,null,null,"oui"," ",null," ",null," ",null,null,null,null,0," "]
[null,null,null,null,null,null,null,null,"oui"," ",null," ",null," ",null,null,null,null,0," "]
[null,null,null,null,null,null,null,null,"oui"," ",null," ",null," ",null,null,null,null,0," "]
[null,null,null,null,null,null,null,null,"oui"," ",null," ",null," ",null,null,null,null,{"$f":"SUM(U68:AY68)","v":0}," "]
[null,null,null,null,null,null,null,null,"oui"," ",null," ",null," ",null,null,null,null,0,{"$f":"IF(ISERR(N69*S69),\" \",N69*S69)","v":" "}]
[null,null,null,null,null,null,null,null,"oui"," ",null," ",null," ",null,null,null,null,0," "]
[null,null,null,null,null,null,null,null,"oui"," ",null," ",null," ",null,null,null,null,0," "]
[null,null,null,null,null,null,null,null,"oui"," ",null," ",null," ",null,null,null,null,0," "]
[null,null,null,null,null,null,null,null,"oui"," ",null," ",null," ",null,null,null,null,0," "]

{"sheet":"RATIOS","index":3,"n_rows":73,"n_cols":51,"rows_kept":73,"cut":false,"hidden":false,"merged":[[12,1,12,4],[3,0,4,4],[3,6,4,8],[0,0,1,1],[0,2,1,6],[0,7,1,8]]}
["Etablissement de : Kyriad Beaucouzé",null,{"$f":"INVENTAIRE!F2","v":"2016-05-01"}]
[]
[]
["Calcul des ratios",null,null,null,null,null,"Détail des pertes saisies sur le mois",null,null,null,null,null,null,null,null,null,null,null,null,null," "," "," "," "," "," "," "," "," "," "," "," "," "," "," "," "," "," "," "," "," "," "," "," "," "," "," "," "," "," "," "]
[null,null,null,null,null,null,null,null,null,null,null,null,null,null,null,null,null,null,null,null," "," "," "," "," "," "," "," "," "," "," "," "," "," "," "," "," "," "," "," "," "," "," "," "," "," "," "," "," "," "," "]
[null,null," ",null,null,null,null,null,null,null,null,null,null,null,null,null,null,null,null,null," "," "," "," "," "," "," "," "," "," "," "," "," "," "," "," "," "," "," "," "," "," "," "," "," "," "," "," "," "," "," "]
[null,"PDJ","Séminaire","Bar Nourriture","Bar Boisson",null,null,"Coût","en % du CA",null,null,null,null,null,null,null,null,null,null,null," "," "," "," "," "," "," "," "," "," "," "," "," "," "," "," "," "," "," "," "," "," "," "," "," "," "," "," "," "," "," "]
["STOCK INITIAL",null," ",null,null,null,"Perte Bar Boisson",{"$f":"SUM(PERTE!T38:'PERTE'!T53)","v":0},{"$f":"IF(ISERR(H8/E11),\" \",H8/E11)","v":" "},null,null,null,null,null,null,null,null,null,null,null," "," "," "," "," "," "," "," "," "," "," "," "," "," "," "," "," "," "," "," "," "," "," "," "," "," "," "," "," "," "," "]
["Achats du mois HT",{"$f":"SUM(B16:B32)","v":0},{"$f":"SUM(C16:C32)","v":0},0,0,null,"Perte Bar Nourriture",{"$f":"SUM(PERTE!T55:'PERTE'!T73)","v":0},{"$f":"IF(ISERR(H9/D11),\" \",H9/D11)","v":" "},null,null,null,null,null,null,null,null,null,null,null," "," "," "," "," "," "," "," "," "," "," "," "," "," "," "," "," "," "," "," "," "," "," "," "," "," "," "," "," "," "," "]
["STOCK FINAL",{"$f":"SUM(INVENTAIRE!L7:L89)","v":0},{"$f":"SUM(INVENTAIRE!K91:K188)","v":0},{"$f":"SUM(INVENTAIRE!L190:L332)","v":0},{"$f":"SUM(INVENTAIRE!L334:L481)","v":0},null,"Perte Séminaire",{"$f":"SUM(PERTE!T21:'PERTE'!T36)","v":13.57338},{"$f":"IF(ISERR(H10/C11),\" \",H10/C11)","v":" "},null,null,null,null,null,null,null,null,null,null,null," "," "," "," "," "," "," "," "," "," "," "," "," "," "," "," "," "," "," "," "," "," "," "," "," "," "," "," "," "," "," "]
["CA HT du mois",null,null,null,null,null,"Perte PDJ",{"$f":"SUM(PERTE!T4:T19)","v":19.349999999999998},{"$f":"IF(ISERR(H11/B11),\" \",H11/B11)","v":" "},null,null,null,null,null,null,null,null,null,null,null," "," "," "," "," "," "," "," "," "," "," "," "," "," "," "," "," "," "," "," "," "," "," "," "," "," "," "," "," "," "," "]
["Ratio",{"$f":"IF(ISERR((B8-B10+B9)/B11),\" \",(B8-B10+B9)/B11)","v":" "}," ",{"$f":"IF(ISERR((D8-D10+D9)/D11),\" \",(D8-D10+D9)/D11)","v":" "}," ",null,"TOTAL",{"$f":"SUM(H8:H11)","v":32.923379999999995},{"$f":"IF(ISERR(H12/B13),\" \",H12/B13)","v":" "},null,null,null,null,null,null,null,null,null,null,null," "," "," "," "," "," "," "," "," "," "," "," "," "," "," "," "," "," "," "," "," "," "," "," "," "," "," "," "," "," "," "]
["TOTAL CA HT DU MOIS",{"$f":"SUM(B11:E11)","v":0},null,null,null,null,null,null,null,null,null,null,null,null,null,null,null,null,null,null," "," "," "," "," "," "," "," "," "," "," "," "," "," "," "," "," "," "," "," "," "," "," "," "," "," "," "," "," "," "," "]
[null,null," ",null,null,null,null,null,null,null,null,null,null,null,null,null,null,null,null,null," "," "," "," "," "," "," "," "," "," "," "," "," "," "," "," "," "," "," "," "," "," "," "," "," "," "," "," "," "," "," "]
["Journal des achats","PDJ","Séminaire","Bar Nourriture","Bar Boisson",null,"Top 10 des pertes","Coût en €",null,null,null,null,null,null,null,null,null,null,null,null," "," "," "," "," "," "," "," "," "," "," "," "," "," "," "," "," "," "," "," "," "," "," "," "," "," "," "," "," "," "," "]
["Brake France Services",null,null,null,null,null,{"$f":"VLOOKUP(H16,PERTE!J4:T73,1,0)","v":{"$error":"#N/A"}},{"$f":"IF(ISERR(LARGE((PERTE!T4:T73),1)),\" \",LARGE((PERTE!T4:T73),1))","v":19.349999999999998},null,null,null,null,null,null,null,null,null,null,null,null," "," "," "," "," "," "," "," "," "," "," "," "," "," "," "," "," "," "," "," "," "," "," "," "," "," "," "," "," "," "," "]
["Brake Epicerie",null,null,null,null,null,null,{"$f":"IF(ISERR(LARGE((PERTE!T4:T73),2)),\" \",LARGE((PERTE!T4:T73),2))","v":13.57338},null,null,null,null,null,null,null,null,null,null,null,null," "," "," "," "," "," "," "," "," "," "," "," "," "," "," "," "," "," "," "," "," "," "," "," "," "," "," "," "," "," "," "]
["Brake Non Alimentaire",null,null,null,null,null,null,{"$f":"IF(ISERR(LARGE((PERTE!T4:T73),3)),\" \",LARGE((PERTE!T4:T73),3))","v":" "},null,null,null,null,null,null,null,null,null,null,null,null," "," "," "," "," "," "," "," "," "," "," "," "," "," "," "," "," "," "," "," "," "," "," "," "," "," "," "," "," "," "," "]
["Boulangerie",null,null,null,null,null,null,{"$f":"IF(ISERR(LARGE((PERTE!T4:T73),4)),\" \",LARGE((PERTE!T4:T73),4))","v":" "},null,null,null,null,null,null,null,null,null,null,null,null," "," "," "," "," "," "," "," "," "," "," "," "," "," "," "," "," "," "," "," "," "," "," "," "," "," "," "," "," "," "," "]
["Fruits frais"]
["Métro",null,null,null,null,null,null,{"$f":"IF(ISERR(LARGE((PERTE!T4:T73),6)),\" \",LARGE((PERTE!T4:T73),6))","v":" "},null,null,null,null,null,null,null,null,null,null,null,null," "," "," "," "," "," "," "," "," "," "," "," "," "," "," "," "," "," "," "," "," "," "," "," "," "," "," "," "," "," "," "]
["Coup de Pates",null,null,null,null,null,null,{"$f":"IF(ISERR(LARGE((PERTE!T4:T73),7)),\" \",LARGE((PERTE!T4:T73),7))","v":" "},null,null,null,null,null,null,null,null,null,null,null,null," "," "," "," "," "," "," "," "," "," "," "," "," "," "," "," "," "," "," "," "," "," "," "," "," "," "," "," "," "," "," "]
["Belle de Maine",null,null,null,null,null,null,{"$f":"IF(ISERR(LARGE((PERTE!T4:T73),8)),\" \",LARGE((PERTE!T4:T73),8))","v":" "},null,null,null,null,null,null,null,null,null,null,null,null," "," "," "," "," "," "," "," "," "," "," "," "," "," "," "," "," "," "," "," "," "," "," "," "," "," "," "," "," "," "," "]
["Giffard",null,null,null,null,null,null,{"$f":"IF(ISERR(LARGE((PERTE!T4:T73),9)),\" \",LARGE((PERTE!T4:T73),9))","v":" "},null,null,null,null,null,null,null,null,null,null,null,null," "," "," "," "," "," "," "," "," "," "," "," "," "," "," "," "," "," "," "," "," "," "," "," "," "," "," "," "," "," "," "]
["V&B",null,null,null,null,null,null,{"$f":"IF(ISERR(LARGE((PERTE!T4:T73),10)),\" \",LARGE((PERTE!T4:T73),10))","v":" "},null,null,null,null,null,null,null,null,null,null,null,null," "," "," "," "," "," "," "," "," "," "," "," "," "," "," "," "," "," "," "," "," "," "," "," "," "," "," "," "," "," "," "]
["Gaïté",null,null,null,null,null,null,null,null,null,null,null,null,null,null,null,null,null,null,null," "," "," "," "," "," "," "," "," "," "," "," "," "," "," "," "," "," "," "," "," "," "," "," "," "," "," "," "," "," "," "]
["Nespresso",null,null,null,null,null,null,null,null,null,null,null,null,null,null,null,null,null,null,null," "," "," "," "," "," "," "," "," "," "," "," "," "," "," "," "," "," "," "," "," "," "," "," "," "," "," "," "," "," "," "]
["Autres",null,null,null,null,null,null,null,null,null,null,null,null,null,null,null,null,null,null,null," "," "," "," "," "," "," "," "," "," "," "," "," "," "," "," "," "," "," "," "," "," "," "," "," "," "," "," "," "," "," "]
["Délice de Molière",null,null,null,null,null,null,null,null,null,null,null,null,null,null,null,null,null,null,null," "," "," "," "," "," "," "," "," "," "," "," "," "," "," "," "," "," "," "," "," "," "," "," "," "," "," "," "," "," "," "]
[null,null,null,null,null,null,null,null,null,null,null,null,null,null,null,null,null,null,null,null," "," "," "," "," "," "," "," "," "," "," "," "," "," "," "," "," "," "," "," "," "," "," "," "," "," "," "," "," "," "," "]
[null,null,null,null,null,null,null,null,null,null,null,null,null,null,null,null,null,null,null,null," "," "," "," "," "," "," "," "," "," "," "," "," "," "," "," "," "," "," "," "," "," "," "," "," "," "," "," "," "," "," "]
[null,null,null,null,null,null,null,null,null,null,null,null,null,null,null,null,null,null,null,null," "," "," "," "," "," "," "," "," "," "," "," "," "," "," "," "," "," "," "," "," "," "," "," "," "," "," "," "," "," "," "]
[null,null," ",null,null,null,null,null,null,null,null,null,null,null,null,null,null,null,null,null," "," "," "," "," "," "," "," "," "," "," "," "," "," "," "," "," "," "," "," "," "," "," "," "," "," "," "," "," "," "," "]
[null,null," ",null,null,null,null,null,null,null,null,null,null,null,null,null,null,null,null,null," "," "," "," "," "," "," "," "," "," "," "," "," "," "," "," "," "," "," "," "," "," "," "," "," "," "," "," "," "," "," "]
[null,null," ",null,null,null,null,null,null,null,null,null,null,null,null,null,null,null,null,null," "," "," "," "," "," "," "," "," "," "," "," "," "," "," "," "," "," "," "," "," "," "," "," "," "," "," "," "," "," "," "]
[null,null," ",null,null,null,null,null,null,null,null,null,null,null,null,null,null,null,null,null," "," "," "," "," "," "," "," "," "," "," "," "," "," "," "," "," "," "," "," "," "," "," "," "," "," "," "," "," "," "," "]
[]
[null,null," ",null,null,null,null,null,null,null,null,null,null,null,null,null,null,null,null,null," "," "," "," "," "," "," "," "," "," "," "," "," "," "," "," "," "," "," "," "," "," "," "," "," "," "," "," "," "," "," "]
[null,null," ",null,null,null,null,null,null,null,null,null,null,null,null,null,null,null,null,null," "," "," "," "," "," "," "," "," "," "," "," "," "," "," "," "," "," "," "," "," "," "," "," "," "," "," "," "," "," "," "]
[null,null," ",null,null,null,null,null,null,null,null,null,null,null,null,null,null,null,null,null," "," "," "," "," "," "," "," "," "," "," "," "," "," "," "," "," "," "," "," "," "," "," "," "," "," "," "," "," "," "," "]
[null,null," ",null,null,null,null,null,null,null,null,null,null,null,null,null,null,null,null,null," "," "," "," "," "," "," "," "," "," "," "," "," "," "," "," "," "," "," "," "," "," "," "," "," "," "," "," "," "," "," "]
[null,null," ",null,null,null,null,null,null,null,null,null,null,null,null,null,null,null,null,null," "," "," "," "," "," "," "," "," "," "," "," "," "," "," "," "," "," "," "," "," "," "," "," "," "," "," "," "," "," "," "]
[null,null," ",null,null,null,null,null,null,null,null,null,null,null,null,null,null,null,null,null," "," "," "," "," "," "," "," "," "," "," "," "," "," "," "," "," "," "," "," "," "," "," "," "," "," "," "," "," "," "," "]
[null,null," ",null,null,null,null,null,null,null,null,null,null,null,null,null,null,null,null,null," "," "," "," "," "," "," "," "," "," "," "," "," "," "," "," "," "," "," "," "," "," "," "," "," "," "," "," "," "," "," "]
[null,null," ",null,null,null,null,null,null,null,null,null,null,null,null,null,null,null,null,null," "," "," "," "," "," "," "," "," "," "," "," "," "," "," "," "," "," "," "," "," "," "," "," "," "," "," "," "," "," "," "]
[null,null," ",null,null,null,null,null,null,null,null,null,null,null,null,null,null,null,null,null," "," "," "," "," "," "," "," "," "," "," "," "," "," "," "," "," "," "," "," "," "," "," "," "," "," "," "," "," "," "," "]
[null,null," ",null,null,null,null,null,null,null,null,null,null,null,null,null,null,null,null,null," "," "," "," "," "," "," "," "," "," "," "," "," "," "," "," "," "," "," "," "," "," "," "," "," "," "," "," "," "," "," "]
[null,null," ",null,null,null,null,null,null,null,null,null,null,null,null,null,null,null,null,null," "," "," "," "," "," "," "," "," "," "," "," "," "," "," "," "," "," "," "," "," "," "," "," "," "," "," "," "," "," "," "]
[null,null," ",null,null,null,null,null,null,null,null,null,null,null,null,null,null,null,null,null," "," "," "," "," "," "," "," "," "," "," "," "," "," "," "," "," "," "," "," "," "," "," "," "," "," "," "," "," "," "," "]
[null,null," ",null,null,null,null,null,null,null,null,null,null,null,null,null,null,null,null,null," "," "," "," "," "," "," "," "," "," "," "," "," "," "," "," "," "," "," "," "," "," "," "," "," "," "," "," "," "," "," "]
[null,null," ",null,null,null,null,null,null,null,null,null,null,null,null,null,null,null,null,null," "," "," "," "," "," "," "," "," "," "," "," "," "," "," "," "," "," "," "," "," "," "," "," "," "," "," "," "," "," "," "]
[null,null," ",null,null,null,null,null,null,null,null,null,null,null,null,null,null,null,null,null," "," "," "," "," "," "," "," "," "," "," "," "," "," "," "," "," "," "," "," "," "," "," "," "," "," "," "," "," "," "," "]
[null,null," ",null,null,null,null,null,null,null,null,null,null,null,null,null,null,null,null,null," "," "," "," "," "," "," "," "," "," "," "," "," "," "," "," "," "," "," "," "," "," "," "," "," "," "," "," "," "," "," "]
[]
[null,null," ",null,null,null,null,null,null,null,null,null,null,null,null,null,null,null,null,null," "," "," "," "," "," "," "," "," "," "," "," "," "," "," "," "," "," "," "," "," "," "," "," "," "," "," "," "," "," "," "]
[null,null," ",null,null,null,null,null,null,null,null,null,null,null,null,null,null,null,null,null," "," "," "," "," "," "," "," "," "," "," "," "," "," "," "," "," "," "," "," "," "," "," "," "," "," "," "," "," "," "," "]
[null,null," ",null,null,null,null,null,null,null,null,null,null,null,null,null,null,null,null,null," "," "," "," "," "," "," "," "," "," "," "," "," "," "," "," "," "," "," "," "," "," "," "," "," "," "," "," "," "," "," "]
[null,null," ",null,null,null,null,null,null,null,null,null,null,null,null,null,null,null,null,null," "," "," "," "," "," "," "," "," "," "," "," "," "," "," "," "," "," "," "," "," "," "," "," "," "," "," "," "," "," "," "]
[null,null," ",null,null,null,null,null,null,null,null,null,null,null,null,null,null,null,null,null," "," "," "," "," "," "," "," "," "," "," "," "," "," "," "," "," "," "," "," "," "," "," "," "," "," "," "," "," "," "," "]
[null,null," ",null,null,null,null,null,null,null,null,null,null,null,null,null,null,null,null,null," "," "," "," "," "," "," "," "," "," "," "," "," "," "," "," "," "," "," "," "," "," "," "," "," "," "," "," "," "," "," "]
[null,null," ",null,null,null,null,null,null,null,null,null,null,null,null,null,null,null,null,null," "," "," "," "," "," "," "," "," "," "," "," "," "," "," "," "," "," "," "," "," "," "," "," "," "," "," "," "," "," "," "]
[null,null," ",null,null,null,null,null,null,null,null,null,null,null,null,null,null,null,null,null," "," "," "," "," "," "," "," "," "," "," "," "," "," "," "," "," "," "," "," "," "," "," "," "," "," "," "," "," "," "," "]
[null,null," ",null,null,null,null,null,null,null,null,null,null,null,null,null,null,null,null,null," "," "," "," "," "," "," "," "," "," "," "," "," "," "," "," "," "," "," "," "," "," "," "," "," "," "," "," "," "," "," "]
[null,null," ",null,null,null,null,null,null,null,null,null,null,null,null,null,null,null,null,null," "," "," "," "," "," "," "," "," "," "," "," "," "," "," "," "," "," "," "," "," "," "," "," "," "," "," "," "," "," "," "]
[null,null," ",null,null,null,null,null,null,null,null,null,null,null,null,null,null,null,null,null," "," "," "," "," "," "," "," "," "," "," "," "," "," "," "," "," "," "," "," "," "," "," "," "," "," "," "," "," "," "," "]
[null,null," ",null,null,null,null,null,null,null,null,null,null,null,null,null,null,null,null,null," "," "," "," "," "," "," "," "," "," "," "," "," "," "," "," "," "," "," "," "," "," "," "," "," "," "," "," "," "," "," "]
[null,null," ",null,null,null,null,null,null,null,null,null,null,null,null,null,null,null,null,null," "," "," "," "," "," "," "," "," "," "," "," "," "," "," "," "," "," "," "," "," "," "," "," "," "," "," "," "," "," "," "]
[null,null," ",null,null,null,null,null,null,null,null,null,null,null,null,null,null,null,null,null," "," "," "," "," "," "," "," "," "," "," "," "," "," "," "," "," "," "," "," "," "," "," "," "," "," "," "," "," "," "," "]
[null,null," ",null,null,null,null,null,null,null,null,null,null,null,null,null,null,null,null,null," "," "," "," "," "," "," "," "," "," "," "," "," "," "," "," "," "," "," "," "," "," "," "," "," "," "," "," "," "," "," "]
[null,null," ",null,null,null,null,null,null,null,null,null,null,null,null,null,null,null,null,null," "," "," "," "," "," "," "," "," "," "," "," "," "," "," "," "," "," "," "," "," "," "," "," "," "," "," "," "," "," "," "]
[null,null," ",null,null,null,null,null,null,null,null,null,null,null,null,null,null,null,null,null," "," "," "," "," "," "," "," "," "," "," "," "," "," "," "," "," "," "," "," "," "," "," "," "," "," "," "," "," "," "," "]
[null,null," ",null,null,null,null,null,null,null,null,null,null,null,null,null,null,null,null,null," "," "," "," "," "," "," "," "," "," "," "," "," "," "," "," "," "," "," "," "," "," "," "," "," "," "," "," "," "," "," "]
[null,null," ",null,null,null,null,null,null,null,null,null,null,null,null,null,null,null,null,null," "," "," "," "," "," "," "," "," "," "," "," "," "," "," "," "," "," "," "," "," "," "," "," "," "," "," "," "," "," "," "]